Body Name,Body,Service Division Label,Service Division Code,Organisational Unit,Expenditure Category,Expenditure Code,CIPFA detailed expediture type,CIPFA detailed expediture code,Narrative,Date,Transaction number,Net Amount,Capital and Revenue,Supplier Name,Supplier ID
Chorley Borough Council,http://statistics.data.gov.uk/id/local-authority/30UE,Capital,Capital,Housing,Grants,3002,Capital Expenditure,Capital,Capital Works - Disable Facility grant,20/02/2013,86921,"3,619.00",Capital,Accessible Bathroom Solutions Ltd,58149
Chorley Borough Council,http://statistics.data.gov.uk/id/local-authority/30UE,Economic Development,1096,Economic Development,Miscellaneous Expenses,40200,Miscellaneous Expenses,5034,Contribution to Apprentice costs over 2 years,06/02/2013,86673,"6,501.00",Revenue,Active Nation UK Ltd,17144
Chorley Borough Council,http://statistics.data.gov.uk/id/local-authority/30UE,Economic Development,1096,Streetscene & Leisure Contracts,Miscellaneous Expenses,40200,Miscellaneous Expenses,5034,Contribution to Apprentice costs over 2 years,06/02/2013,86711,"34,031.90",Revenue,Active Nation UK Ltd,17144
Chorley Borough Council,http://statistics.data.gov.uk/id/local-authority/30UE,Economic Development,1096,Economic Development,Miscellaneous Expenses,40200,Miscellaneous Expenses,5034,Funding for Apprentices,28/01/2013,86083,"13,000.00",Revenue,Adactus Housing Group,19700
Chorley Borough Council,http://statistics.data.gov.uk/id/local-authority/30UE,Economic Development,1096,Economic Development,Grants To Other Organisations,40127,Grants and Subscriptions,5031,Starting in Business Grant - Capital Expenditure,06/02/2013,86648,"1,000.00",Revenue,NAME REDACTED,57957
Chorley Borough Council,http://statistics.data.gov.uk/id/local-authority/30UE,Business Support,1095,Governance,Burglar Alarms & Security Systems,20075,Fixtures and Fittings,5010,Additional work carried out on Intruder Alarm ADDRESS REDACTED,06/02/2013,86710,490.00,Revenue,ADT Fire & Security,16645
Chorley Borough Council,http://statistics.data.gov.uk/id/local-authority/30UE,Capital,Capital,Housing,Grants,3002,Capital Expenditure,Capital,Capital Works - Disable Facility Grant,20/02/2013,86922,"2,655.00",Capital,AJS Joinery and Building Contractor,18195
Chorley Borough Council,http://statistics.data.gov.uk/id/local-authority/30UE,Planning Policy,1092,Shared Service Arrangement,Car Leasing Payment,14100,Direct Employee Expenses,5001,Vehicle Leasing,08/02/2013,86699,"2,797.79",Revenue,Alphabet (Uk) Fleet Management Ltd,16651
Chorley Borough Council,http://statistics.data.gov.uk/id/local-authority/30UE,Economic Development,1096,Economic Development,Cleaning Materials,40019,"Equipment, Furniture & Materia",5023,Various Janitorial Supplies,08/02/2013,86698,718.25,Revenue,Amtoll Ltd,21738
Chorley Borough Council,http://statistics.data.gov.uk/id/local-authority/30UE,Central Support Services,1009,"Customer, ICT & Transactional",Consultants` Fees,40077,Services,5027,Out of house support for INC005150. To help resolve the issue with Xen desktop.19th September 2012,25/02/2013,86797,"6,000.00",Revenue,ANS Group,22502
Chorley Borough Council,http://statistics.data.gov.uk/id/local-authority/30UE,Central Support Services,1009,"Customer, ICT & Transactional",IT Software - Annual Licences,40101,Communication and Computing,5028,"1 x Citrix Subscription Renewal, inc Citrix XenDesktop, Citrix Repeater Plug-in, Citrix Access Gateway ",27/02/2013,87086,"9,706.16",Revenue,ANS Group,22502
Chorley Borough Council,http://statistics.data.gov.uk/id/local-authority/30UE,Service Management & Support,1009,Streetscene & Leisure Contracts,Protective Clothing,40040,"Clothing, Uniforms and Laundry",5025,Supply Water repelent combat trousers multi pocketed with concealed zips belt looped part elasticated waist,13/02/2013,86856,73.00,Revenue,Arco Limited,17458
Chorley Borough Council,http://statistics.data.gov.uk/id/local-authority/30UE,Service Management & Support,1009,Streetscene & Leisure Contracts,Protective Clothing,40040,"Clothing, Uniforms and Laundry",5025,Supply High viz waterproof bomber jacket c/w Chorley LOGO size small No 1891000,13/02/2013,86856,103.26,Revenue,Arco Limited,17458
Chorley Borough Council,http://statistics.data.gov.uk/id/local-authority/30UE,Service Management & Support,1009,Streetscene & Leisure Contracts,Protective Clothing,40040,"Clothing, Uniforms and Laundry",5025,Supply high viz waterproof bomber jacket c/w Chorley Logo size medium No 1891000,13/02/2013,86856,103.26,Revenue,Arco Limited,17458
Chorley Borough Council,http://statistics.data.gov.uk/id/local-authority/30UE,Service Management & Support,1009,Streetscene & Leisure Contracts,Protective Clothing,40040,"Clothing, Uniforms and Laundry",5025,Supply high viz bomber jacket c/w Chorley logo size Large No 1891000,13/02/2013,86856,103.26,Revenue,Arco Limited,17458
Chorley Borough Council,http://statistics.data.gov.uk/id/local-authority/30UE,Service Management & Support,1009,Streetscene & Leisure Contracts,Protective Clothing,40040,"Clothing, Uniforms and Laundry",5025,Supply high viz bomber jacket c/w Chorley logo size xlarge No 1891000,13/02/2013,86856,103.26,Revenue,Arco Limited,17458
Chorley Borough Council,http://statistics.data.gov.uk/id/local-authority/30UE,Public Transport,1067,Streetscene & Leisure Contracts,Bus Shelters -Maintenance,20062,Grounds Maintenance Costs,5013,Carryout refurbishment of bus shelters as per Chorley Council specification across the borough of Chorley,13/02/2013,86871,"1,060.00",Revenue,Ark Welding Ltd,18154
Chorley Borough Council,http://statistics.data.gov.uk/id/local-authority/30UE,Service Management & Support,1009,Streetscene & Leisure Contracts,Supplies-Grounds Maintenance,40025,"Equipment, Furniture & Materia",5023,Manufacture supply and fit new tool box to front of tractor and side arm flail,13/02/2013,86875,495.00,Revenue,Ark Welding Ltd,18154
Chorley Borough Council,http://statistics.data.gov.uk/id/local-authority/30UE,Corporate Management,1008,Shared Service Arrangement,Car Leasing Payment,14100,Direct Employee Expenses,5001,Vehicle Leasing,08/02/2013,86781,"4,176.00",Revenue,Arnold Clark Finance Ltd,20685
Chorley Borough Council,http://statistics.data.gov.uk/id/local-authority/30UE,Corporate Management,1008,Shared Service Arrangement,Car Leasing Payment,14100,Direct Employee Expenses,5001,Vehicle Leasing,08/02/2013,86781,362.89,Revenue,Arnold Clark Finance Ltd,20685
Chorley Borough Council,http://statistics.data.gov.uk/id/local-authority/30UE,Control Accounts,Control,Shared Service Arrangement,Manual Control Account,1,Balance Sheet,Balance,Vehicle Leasing,08/02/2013,86781,-362.89,Revenue,Arnold Clark Finance Ltd,20685
Chorley Borough Council,http://statistics.data.gov.uk/id/local-authority/30UE,Unapportionable Central OHeads,1009,Shared Service Arrangement,Car Leasing Payment,14100,Direct Employee Expenses,5001,Vehicle Leasing,25/02/2013,87023,"3,012.00",Revenue,Arnold Clark Finance Ltd,20685
Chorley Borough Council,http://statistics.data.gov.uk/id/local-authority/30UE,Central Support Services,1009,Shared Service Arrangement,Car Leasing Payment,14100,Direct Employee Expenses,5001,Vehicle Leasing,25/02/2013,87023,252.79,Revenue,Arnold Clark Finance Ltd,20685
Chorley Borough Council,http://statistics.data.gov.uk/id/local-authority/30UE,Control Accounts,Control,Shared Service Arrangement,Manual Control Account,1,Balance Sheet,Balance,Vehicle Leasing,25/02/2013,87023,-252.79,Revenue,Arnold Clark Finance Ltd,20685
Chorley Borough Council,http://statistics.data.gov.uk/id/local-authority/30UE,Planning Policy,1092,Shared Service Arrangement,Car Leasing Payment,14100,Direct Employee Expenses,5001,Vehicle Leasing,25/02/2013,87023,"3,528.00",Revenue,Arnold Clark Finance Ltd,20685
Chorley Borough Council,http://statistics.data.gov.uk/id/local-authority/30UE,Planning Policy,1092,Shared Service Arrangement,Car Leasing Payment,14100,Direct Employee Expenses,5001,Vehicle Leasing,25/02/2013,87023,307.25,Revenue,Arnold Clark Finance Ltd,20685
Chorley Borough Council,http://statistics.data.gov.uk/id/local-authority/30UE,Control Accounts,Control,Shared Service Arrangement,Manual Control Account,1,Balance Sheet,Balance,Vehicle Leasing,25/02/2013,87023,-307.25,Revenue,Arnold Clark Finance Ltd,20685
Chorley Borough Council,http://statistics.data.gov.uk/id/local-authority/30UE,Housing Benefit Administration,1077,Shared Service Arrangement,Car Leasing Payment,14100,Direct Employee Expenses,5001,Vehicle Leasing,25/02/2013,87024,"3,000.00",Revenue,Arnold Clark Finance Ltd,20685
Chorley Borough Council,http://statistics.data.gov.uk/id/local-authority/30UE,Housing Benefit Administration,1077,Shared Service Arrangement,Car Leasing Payment,14100,Direct Employee Expenses,5001,Vehicle Leasing,25/02/2013,87024,232.26,Revenue,Arnold Clark Finance Ltd,20685
Chorley Borough Council,http://statistics.data.gov.uk/id/local-authority/30UE,Control Accounts,Control,Shared Service Arrangement,Manual Control Account,1,Balance Sheet,Balance,Vehicle Leasing,25/02/2013,87024,-232.26,Revenue,Arnold Clark Finance Ltd,20685
Chorley Borough Council,http://statistics.data.gov.uk/id/local-authority/30UE,Unapportionable Central OHeads,1009,Shared Service Arrangement,Car Leasing Payment,14100,Direct Employee Expenses,5001,Vehicle Leasing,25/02/2013,87025,"3,612.00",Revenue,Arnold Clark Finance Ltd,20685
Chorley Borough Council,http://statistics.data.gov.uk/id/local-authority/30UE,Unapportionable Central OHeads,1009,Shared Service Arrangement,Car Leasing Payment,14100,Direct Employee Expenses,5001,Vehicle Leasing,25/02/2013,87025,313.82,Revenue,Arnold Clark Finance Ltd,20685
Chorley Borough Council,http://statistics.data.gov.uk/id/local-authority/30UE,Control Accounts,Control,Shared Service Arrangement,Manual Control Account,1,Balance Sheet,Balance,Vehicle Leasing,25/02/2013,87025,-313.82,Revenue,Arnold Clark Finance Ltd,20685
Chorley Borough Council,http://statistics.data.gov.uk/id/local-authority/30UE,Unapportionable Central OHeads,1009,Shared Service Arrangement,Car Leasing Payment,14100,Direct Employee Expenses,5001,Vehicle Leasing,25/02/2013,87026,"4,776.00",Revenue,Arnold Clark Finance Ltd,20685
Chorley Borough Council,http://statistics.data.gov.uk/id/local-authority/30UE,Unapportionable Central OHeads,1009,Shared Service Arrangement,Car Leasing Payment,14100,Direct Employee Expenses,5001,Vehicle Leasing,25/02/2013,87026,427.57,Revenue,Arnold Clark Finance Ltd,20685
Chorley Borough Council,http://statistics.data.gov.uk/id/local-authority/30UE,Control Accounts,Control,Shared Service Arrangement,Manual Control Account,1,Balance Sheet,Balance,Vehicle Leasing,25/02/2013,87026,-427.57,Revenue,Arnold Clark Finance Ltd,20685
Chorley Borough Council,http://statistics.data.gov.uk/id/local-authority/30UE,Corporate Management,1008,Health Environment & Neighbourhoods,Taxi Testing & Vehicle Safety Report,40234,Services,5027,MOT,08/02/2013,86774,713.05,Revenue,Autocentre LTD,21651
Chorley Borough Council,http://statistics.data.gov.uk/id/local-authority/30UE,Regulatory Services,1048,Health Environment & Neighbourhoods,Taxi Testing & Vehicle Safety Report,40234,Services,5027,MOT,08/02/2013,86774,108.29,Revenue,Autocentre LTD,21651
Chorley Borough Council,http://statistics.data.gov.uk/id/local-authority/30UE,Corporate Management,1008,Health Environment & Neighbourhoods,Tools & Equipment - Maintenance,40005,"Equipment, Furniture & Materia",5023,Repairs to CCTV system,08/02/2013,86739,665.26,Revenue,Baydale Control Systems,21154
Chorley Borough Council,http://statistics.data.gov.uk/id/local-authority/30UE,Community Safety CCTV,1044,Health Environment & Neighbourhoods,Tools & Equipment - Maintenance,40005,"Equipment, Furniture & Materia",5023,Repairs to CCTV system,08/02/2013,86740,721.50,Revenue,Baydale Control Systems,21154
Chorley Borough Council,http://statistics.data.gov.uk/id/local-authority/30UE,Corporate Management,1008,Health Environment & Neighbourhoods,Tools & Equipment - Maintenance,40005,"Equipment, Furniture & Materia",5023,Repairs to CCTV system,08/02/2013,86746,709.35,Revenue,Baydale Control Systems,21154
Chorley Borough Council,http://statistics.data.gov.uk/id/local-authority/30UE,Unapportionable Central OHeads,1009,"Customer, ICT & Transactional",Consultants` Fees,40077,Services,5027,For Support Services as agreed with Customer ICT Transactional Services,25/02/2013,87018,"1,500.00",Revenue,REDACTED PERSONAL DATA,22238
Chorley Borough Council,http://statistics.data.gov.uk/id/local-authority/30UE,Unapportionable Central OHeads,1009,"Customer, ICT & Transactional",Consultants` Fees,40077,Services,5027,For Support Services as agreed with Policy and Communications,25/02/2013,87018,"1,050.00",Revenue,REDACTED PERSONAL DATA,22238
Chorley Borough Council,http://statistics.data.gov.uk/id/local-authority/30UE,Unapportionable Central OHeads,1009,Shared Service Arrangement,External Contractor,40198,Miscellaneous Expenses,5034,Provision of payroll Services 2012/2013,08/02/2013,86792,"9,123.02",Revenue,Blackpool Borough Council,16518
Chorley Borough Council,http://statistics.data.gov.uk/id/local-authority/30UE,Central Support Services,1009,Shared Service Arrangement,External Contractor,40198,Miscellaneous Expenses,5034,Postage,08/02/2013,86792,661.50,Revenue,Blackpool Borough Council,16518
Chorley Borough Council,http://statistics.data.gov.uk/id/local-authority/30UE,Control Accounts,Control,Shared Service Arrangement,General Balances,100,Balance Sheet,Balance,Salary reclaims,08/02/2013,86792,673.76,Revenue,Blackpool Borough Council,16518
Chorley Borough Council,http://statistics.data.gov.uk/id/local-authority/30UE,Economic Development,1096,Economic Development,Consultants` Fees,40077,Services,5027,Inw Investment Plan (including Specification and Terms and Conditions of Services for Consultancy services) ,20/02/2013,86959,"11,125.00",Revenue,Breeze Strategy Limited,57864
Chorley Borough Council,http://statistics.data.gov.uk/id/local-authority/30UE,Open Spaces,1038,Chief Executives Office,Gas,20014,Energy Costs,5006,Yarrow Valley Park,25/02/2013,86917,157.25,Revenue,British Gas Business,22242
Chorley Borough Council,http://statistics.data.gov.uk/id/local-authority/30UE,Culture & Heritage,1036,Chief Executives Office,Gas,20014,Energy Costs,5006,Astley Cottage,25/02/2013,86917,237.21,Revenue,British Gas Business,22242
Chorley Borough Council,http://statistics.data.gov.uk/id/local-authority/30UE,Unapportionable Central OHeads,1009,Chief Executives Office,Gas,20014,Energy Costs,5006,Bengal Street,25/02/2013,86917,365.29,Revenue,British Gas Business,22242
Chorley Borough Council,http://statistics.data.gov.uk/id/local-authority/30UE,Recreation & Sport,1037,Chief Executives Office,Gas,20014,Energy Costs,5006,Astley Vill Comm Ctr,25/02/2013,86917,374.19,Revenue,British Gas Business,22242
Chorley Borough Council,http://statistics.data.gov.uk/id/local-authority/30UE,Recreation & Sport,1037,Chief Executives Office,Gas,20014,Energy Costs,5006,Eaves Green Comm Ctr,25/02/2013,86917,353.86,Revenue,British Gas Business,22242
Chorley Borough Council,http://statistics.data.gov.uk/id/local-authority/30UE,Community Development,1097,Chief Executives Office,Gas,20014,Energy Costs,5006,Accounting Adv Svcs,25/02/2013,86917,92.90,Revenue,British Gas Business,22242
Chorley Borough Council,http://statistics.data.gov.uk/id/local-authority/30UE,Democratic Represent and  Mgnt,1007,Chief Executives Office,Gas,20014,Energy Costs,5006,Coach House,25/02/2013,86917,616.17,Revenue,British Gas Business,22242
Chorley Borough Council,http://statistics.data.gov.uk/id/local-authority/30UE,Recreation & Sport,1037,Chief Executives Office,Gas,20014,Energy Costs,5006,Clayton Brook Comm Ctr,25/02/2013,86917,337.00,Revenue,British Gas Business,22242
Chorley Borough Council,http://statistics.data.gov.uk/id/local-authority/30UE,Democratic Represent and  Mgnt,1007,Chief Executives Office,Gas,20014,Energy Costs,5006,Astley Hall Farm House,25/02/2013,86917,275.91,Revenue,British Gas Business,22242
Chorley Borough Council,http://statistics.data.gov.uk/id/local-authority/30UE,Homelessness,1075,Chief Executives Office,Gas,20014,Energy Costs,5006,Cotswold House,25/02/2013,86917,"1,666.88",Revenue,British Gas Business,22242
Chorley Borough Council,http://statistics.data.gov.uk/id/local-authority/30UE,Central Support Services,1009,Chief Executives Office,Gas,20014,Energy Costs,5006,Union Street,25/02/2013,86917,"1,577.28",Revenue,British Gas Business,22242
Chorley Borough Council,http://statistics.data.gov.uk/id/local-authority/30UE,Culture & Heritage,1036,Chief Executives Office,Gas,20014,Energy Costs,5006,Astley Hall,25/02/2013,86917,"2,387.51",Revenue,British Gas Business,22242
Chorley Borough Council,http://statistics.data.gov.uk/id/local-authority/30UE,Central Support Services,1009,Chief Executives Office,Gas,20014,Energy Costs,5006,Town Hall,25/02/2013,86917,"1,898.03",Revenue,British Gas Business,22242
Chorley Borough Council,http://statistics.data.gov.uk/id/local-authority/30UE,Central Support Services,1009,HR & Org. Development,Service Fees,40056,Services,5027,CBC Contribution. Funding for 2 x Zoll AED Plus. Ref: J20120959/0959,13/02/2013,86826,838.80,Revenue,British Heart Foundation,57634
Chorley Borough Council,http://statistics.data.gov.uk/id/local-authority/30UE,Democratic Represent and  Mgnt,1007,Streetscene & Leisure Contracts,Use Of Transport - Mayoral Car,30015,Transport Recharges,5017,Petrol,20/02/2013,86804,31.93,Revenue,Bungalow Filling Station,17042
Chorley Borough Council,http://statistics.data.gov.uk/id/local-authority/30UE,Open Spaces,1038,Streetscene & Leisure Contracts,Petrol,30005,Direct Transport Costs,5016,Petrol,20/02/2013,86804,19.55,Revenue,Bungalow Filling Station,17042
Chorley Borough Council,http://statistics.data.gov.uk/id/local-authority/30UE,Service Management & Support,1009,Streetscene & Leisure Contracts,Petrol,30005,Direct Transport Costs,5016,Petrol,20/02/2013,86804,115.10,Revenue,Bungalow Filling Station,17042
Chorley Borough Council,http://statistics.data.gov.uk/id/local-authority/30UE,Community Safety Crime Reduct,1043,Streetscene & Leisure Contracts,Petrol,30005,Direct Transport Costs,5016,Petrol,20/02/2013,86804,42.12,Revenue,Bungalow Filling Station,17042
Chorley Borough Council,http://statistics.data.gov.uk/id/local-authority/30UE,Corporate Management,1008,Streetscene & Leisure Contracts,Petrol,30005,Direct Transport Costs,5016,Petrol,20/02/2013,86804,52.24,Revenue,Bungalow Filling Station,17042
Chorley Borough Council,http://statistics.data.gov.uk/id/local-authority/30UE,Service Management & Support,1009,Streetscene & Leisure Contracts,Supplies-Grounds Maintenance,40025,"Equipment, Furniture & Materia",5023,Supply 25kg bags of Highway C2 fast setting mortar to be delivered to Bengal St Depot,08/02/2013,86816,417.50,Revenue,C & W BERRY LIMITED,18180
Chorley Borough Council,http://statistics.data.gov.uk/id/local-authority/30UE,Service Management & Support,1009,Streetscene & Leisure Contracts,Supplies & Consumables -Street Cleansing,40235,"Equipment, Furniture & Materia",5023,Supply 4lb Lump hammer bright faced hickory shaft,08/02/2013,86816,10.54,Revenue,C & W BERRY LIMITED,18180
Chorley Borough Council,http://statistics.data.gov.uk/id/local-authority/30UE,Service Management & Support,1009,Streetscene & Leisure Contracts,Supplies & Consumables -Street Cleansing,40235,"Equipment, Furniture & Materia",5023,Supply Brush head 13`` round stock 16x5 Knot c/w 54`` handle assembled  No`s 05070918 and 04010881,08/02/2013,86816,56.60,Revenue,C & W BERRY LIMITED,18180
Chorley Borough Council,http://statistics.data.gov.uk/id/local-authority/30UE,Unapportionable Central OHeads,1009,Streetscene & Leisure Contracts,Refuse Collection,20037,Cleaning and Domestic Supplies,5012,Emptying of interceptor tanks at Bengal St and clearing of gullies and catchment pit in depot,27/02/2013,87031,300.00,Revenue,C J Lyon,16579
Chorley Borough Council,http://statistics.data.gov.uk/id/local-authority/30UE,Service Management & Support,1009,Streetscene & Leisure Contracts,Vehicle Maintenance,30045,Direct Transport Costs,5016,Supply and fit rear springs and new U bolts on DK07LDE as required,27/02/2013,87084,"1,275.70",Revenue,C P Davidson & Sons Ltd,21093
Chorley Borough Council,http://statistics.data.gov.uk/id/local-authority/30UE,Central Support Services,1009,"Customer, ICT & Transactional",Computer Equipment - Security,40106,Communication and Computing,5028,"Quarterly bill for period 10/10/12 to 31/12/12 for connectivity, core charge, procurement service and email",06/02/2013,86238,"2,627.10",Revenue,Cable & Wireless Worldwide,48888
Chorley Borough Council,http://statistics.data.gov.uk/id/local-authority/30UE,Service Management & Support,1009,Streetscene & Leisure Contracts,Tools & Equipment - Maintenance,40005,"Equipment, Furniture & Materia",5023,Carryout insurance repairs to workshop vehicle lift as per insurance report from Zurich,13/02/2013,86532,"1,073.44",Revenue,Calibration & Consultancy Services UK,18882
Chorley Borough Council,http://statistics.data.gov.uk/id/local-authority/30UE,Unapportionable Central OHeads,1009,"Customer, ICT & Transactional",Emergency Call Out System,40096,Communication and Computing,5028,Out of Hours - Call Charge for December 2012,08/02/2013,86343,330.60,Revenue,CallCare Ltd,20257
Chorley Borough Council,http://statistics.data.gov.uk/id/local-authority/30UE,Unapportionable Central OHeads,1009,"Customer, ICT & Transactional",Emergency Call Out System,40096,Communication and Computing,5028,Out of Hours - Standing Charge for February 2013,08/02/2013,86343,120.00,Revenue,CallCare Ltd,20257
Chorley Borough Council,http://statistics.data.gov.uk/id/local-authority/30UE,Democratic Represent and  Mgnt,1007,Governance,Other Contributions,40145,Grants and Subscriptions,5031,Deposit for catering at the Mayor`s Charity Ball on 15th February 2013,06/02/2013,86681,990.78,Revenue,Camerons Restaurant Ltd,53731
Chorley Borough Council,http://statistics.data.gov.uk/id/local-authority/30UE,Democratic Represent and  Mgnt,1007,Governance,Other Contributions,40145,Grants and Subscriptions,5031,Balance of catering and hire costs for Mayor`s Charity Ball on 15th Feb 2013,25/02/2013,87002,"1,300.11",Revenue,Camerons Restaurant Ltd,53731
Chorley Borough Council,http://statistics.data.gov.uk/id/local-authority/30UE,Central Support Services,1009,"Customer, ICT & Transactional",Printing,40043,"Printing, Stationery & General",5026,Contract GB-505918-OKL,27/02/2013,87079,"1,898.00",Revenue,Canon (UK) Ltd,17492
Chorley Borough Council,http://statistics.data.gov.uk/id/local-authority/30UE,Unapportionable Central OHeads,1009,"Customer, ICT & Transactional",Printing,40043,"Printing, Stationery & General",5026,Contact GB-505928-OKL,27/02/2013,87079,400.36,Revenue,Canon (UK) Ltd,17492
Chorley Borough Council,http://statistics.data.gov.uk/id/local-authority/30UE,Central Support Services,1009,"Customer, ICT & Transactional",Printing,40043,"Printing, Stationery & General",5026,Contract GB-506449-OKL,27/02/2013,87079,469.87,Revenue,Canon (UK) Ltd,17492
Chorley Borough Council,http://statistics.data.gov.uk/id/local-authority/30UE,Housing Benefit Administration,1077,"Customer, ICT & Transactional",Conferences - Staff,40120,Expenses,5030,End of year seminar 250113 for Council Tax/NNDR,27/02/2013,87088,325.00,Revenue,Capita Business Services Ltd,17151
Chorley Borough Council,http://statistics.data.gov.uk/id/local-authority/30UE,Local Tax Collection,1010,"Customer, ICT & Transactional",Conferences - Staff,40120,Expenses,5030,End of year sminar for Ctax/NNDR 250112,27/02/2013,87088,325.00,Revenue,Capita Business Services Ltd,17151
Chorley Borough Council,http://statistics.data.gov.uk/id/local-authority/30UE,Parking Services,1066,Streetscene & Leisure Contracts,External Contractors,50008,Private Contractors,5042,Provision of Notice Processing Services automated telephone and internet payments,27/02/2013,86754,602.58,Revenue,Chipside Ltd,22063
Chorley Borough Council,http://statistics.data.gov.uk/id/local-authority/30UE,Parking Services,1066,Streetscene & Leisure Contracts,External Contractors,50008,Private Contractors,5042,Merchant ID Bank Charges applied by HSBC Bank PLC (Merchant Services) to agreed schedule of charges.,27/02/2013,86760,305.96,Revenue,Chipside Ltd,22063
Chorley Borough Council,http://statistics.data.gov.uk/id/local-authority/30UE,Corporate Management,1008,Health Environment & Neighbourhoods,Taxi Testing & Vehicle Safety Report,40234,Services,5027,MOT,20/02/2013,86929,"1,316.40",Revenue,Chorley Autocare Ltd,17110
Chorley Borough Council,http://statistics.data.gov.uk/id/local-authority/30UE,Regulatory Services,1048,Health Environment & Neighbourhoods,Taxi Testing & Vehicle Safety Report,40234,Services,5027,MOT,20/02/2013,86929,205.20,Revenue,Chorley Autocare Ltd,17110
Chorley Borough Council,http://statistics.data.gov.uk/id/local-authority/30UE,Central Support Services,1009,Chief Executives Office,Stationery,40050,"Printing, Stationery & General",5026,Software Package,06/02/2013,86733,15.67,Revenue,Chorley BC Petty Cash,16301
Chorley Borough Council,http://statistics.data.gov.uk/id/local-authority/30UE,Central Support Services,1009,Chief Executives Office,Cleaning Materials,40019,"Equipment, Furniture & Materia",5023,Dishwasher Tablets,06/02/2013,86733,4.17,Revenue,Chorley BC Petty Cash,16301
Chorley Borough Council,http://statistics.data.gov.uk/id/local-authority/30UE,Unapportionable Central OHeads,1009,Chief Executives Office,Other Fees,40212,Miscellaneous Expenses,5034,Mayoral Car Wash,06/02/2013,86733,4.17,Revenue,Chorley BC Petty Cash,16301
Chorley Borough Council,http://statistics.data.gov.uk/id/local-authority/30UE,Central Support Services,1009,Chief Executives Office,Refreshments,40036,Catering,5024,Refreshments,06/02/2013,86733,2.50,Revenue,Chorley BC Petty Cash,16301
Chorley Borough Council,http://statistics.data.gov.uk/id/local-authority/30UE,Unapportionable Central OHeads,1009,Chief Executives Office,Stationery,40050,"Printing, Stationery & General",5026,Plastic Wallets,06/02/2013,86733,2.49,Revenue,Chorley BC Petty Cash,16301
Chorley Borough Council,http://statistics.data.gov.uk/id/local-authority/30UE,Recreation & Sport,1037,Chief Executives Office,Sports Development Initiatives,40186,Miscellaneous Expenses,5034,Refreshments,06/02/2013,86733,16.52,Revenue,Chorley BC Petty Cash,16301
Chorley Borough Council,http://statistics.data.gov.uk/id/local-authority/30UE,Unapportionable Central OHeads,1009,Chief Executives Office,Tools & Equipment - Maintenance,40005,"Equipment, Furniture & Materia",5023,Mayor Car Wash,06/02/2013,86733,2.67,Revenue,Chorley BC Petty Cash,16301
Chorley Borough Council,http://statistics.data.gov.uk/id/local-authority/30UE,Recreation & Sport,1037,Chief Executives Office,Refreshments,40036,Catering,5024,Refreshments,06/02/2013,86733,16.52,Revenue,Chorley BC Petty Cash,16301
Chorley Borough Council,http://statistics.data.gov.uk/id/local-authority/30UE,Culture & Heritage,1036,Chief Executives Office,Other Fees,40212,Miscellaneous Expenses,5034,Pitcher,06/02/2013,86733,5.23,Revenue,Chorley BC Petty Cash,16301
Chorley Borough Council,http://statistics.data.gov.uk/id/local-authority/30UE,Democratic Represent and  Mgnt,1007,Chief Executives Office,Other Fees,40212,Miscellaneous Expenses,5034,Light Bulbs,06/02/2013,86733,1.67,Revenue,Chorley BC Petty Cash,16301
Chorley Borough Council,http://statistics.data.gov.uk/id/local-authority/30UE,Democratic Represent and  Mgnt,1007,Chief Executives Office,Other Fees,40212,Miscellaneous Expenses,5034,Milk,06/02/2013,86733,0.89,Revenue,Chorley BC Petty Cash,16301
Chorley Borough Council,http://statistics.data.gov.uk/id/local-authority/30UE,Culture & Heritage,1036,Chief Executives Office,Other Fees,40212,Miscellaneous Expenses,5034,Glass Jars,06/02/2013,86733,2.50,Revenue,Chorley BC Petty Cash,16301
Chorley Borough Council,http://statistics.data.gov.uk/id/local-authority/30UE,Democratic Represent and  Mgnt,1007,Chief Executives Office,Other Fees,40212,Miscellaneous Expenses,5034,"Coffee, Sugar, Jars",06/02/2013,86733,4.89,Revenue,Chorley BC Petty Cash,16301
Chorley Borough Council,http://statistics.data.gov.uk/id/local-authority/30UE,Building Control,1090,Chief Executives Office,Parking Fees,30036,Car Allowances,5021,Car Parking - Meeting,06/02/2013,86733,4.00,Revenue,Chorley BC Petty Cash,16301
Chorley Borough Council,http://statistics.data.gov.uk/id/local-authority/30UE,Recreation & Sport,1037,Chief Executives Office,Rent/Hire Of Premises,20017,Premises Rents,5007,Arts Materials,06/02/2013,86733,7.13,Revenue,Chorley BC Petty Cash,16301
Chorley Borough Council,http://statistics.data.gov.uk/id/local-authority/30UE,Democratic Represent and  Mgnt,1007,Chief Executives Office,Miscellaneous Expenses,40200,Miscellaneous Expenses,5034,Chocolates Xmas,06/02/2013,86733,10.83,Revenue,Chorley BC Petty Cash,16301
Chorley Borough Council,http://statistics.data.gov.uk/id/local-authority/30UE,Economic Development,1096,Chief Executives Office,Miscellaneous Expenses,40200,Miscellaneous Expenses,5034,Gate Keys,06/02/2013,86733,15.75,Revenue,Chorley BC Petty Cash,16301
Chorley Borough Council,http://statistics.data.gov.uk/id/local-authority/30UE,Central Support Services,1009,Chief Executives Office,Computer Equipment-Purchase,40098,Communication and Computing,5028,Cable Wires,06/02/2013,86733,8.25,Revenue,Chorley BC Petty Cash,16301
Chorley Borough Council,http://statistics.data.gov.uk/id/local-authority/30UE,Corporate Management,1008,Chief Executives Office,Reward and Recognition,18006,Indirect Employee Expenses,5002,Candles,06/02/2013,86733,4.17,Revenue,Chorley BC Petty Cash,16301
Chorley Borough Council,http://statistics.data.gov.uk/id/local-authority/30UE,Recreation & Sport,1037,Chief Executives Office,Tools & Equipment - Purchase,40003,"Equipment, Furniture & Materia",5023,Batteries,06/02/2013,86733,12.63,Revenue,Chorley BC Petty Cash,16301
Chorley Borough Council,http://statistics.data.gov.uk/id/local-authority/30UE,Democratic Represent and  Mgnt,1007,Chief Executives Office,Use Of Transport - Mayoral Car,30015,Transport Recharges,5017,Mayors Car Wash,06/02/2013,86733,5.33,Revenue,Chorley BC Petty Cash,16301
Chorley Borough Council,http://statistics.data.gov.uk/id/local-authority/30UE,Building Control,1090,Chief Executives Office,Parking Fees,30036,Car Allowances,5021,Diaries,06/02/2013,86733,16.95,Revenue,Chorley BC Petty Cash,16301
Chorley Borough Council,http://statistics.data.gov.uk/id/local-authority/30UE,Planning Policy,1092,Chief Executives Office,Postages,40082,Communication and Computing,5028,Postage,06/02/2013,86733,12.25,Revenue,Chorley BC Petty Cash,16301
Chorley Borough Council,http://statistics.data.gov.uk/id/local-authority/30UE,Elections,1012,Chief Executives Office,Stationery,40050,"Printing, Stationery & General",5026,Calenders,06/02/2013,86733,6.65,Revenue,Chorley BC Petty Cash,16301
Chorley Borough Council,http://statistics.data.gov.uk/id/local-authority/30UE,Unapportionable Central OHeads,1009,Chief Executives Office,Computer Equipment-Purchase,40098,Communication and Computing,5028,Mobile Dongle,06/02/2013,86733,17.19,Revenue,Chorley BC Petty Cash,16301
Chorley Borough Council,http://statistics.data.gov.uk/id/local-authority/30UE,Recreation & Sport,1037,Chief Executives Office,Tools & Equipment - Purchase,40003,"Equipment, Furniture & Materia",5023,Kettle,06/02/2013,86733,4.57,Revenue,Chorley BC Petty Cash,16301
Chorley Borough Council,http://statistics.data.gov.uk/id/local-authority/30UE,Recreation & Sport,1037,Chief Executives Office,Cleaning Materials,40019,"Equipment, Furniture & Materia",5023,Liquid Soap,06/02/2013,86733,3.58,Revenue,Chorley BC Petty Cash,16301
Chorley Borough Council,http://statistics.data.gov.uk/id/local-authority/30UE,Recreation & Sport,1037,Chief Executives Office,Miscellaneous Expenses,40200,Miscellaneous Expenses,5034,Xmas Cards,06/02/2013,86733,3.32,Revenue,Chorley BC Petty Cash,16301
Chorley Borough Council,http://statistics.data.gov.uk/id/local-authority/30UE,Development Control,1091,Chief Executives Office,Postages,40082,Communication and Computing,5028,Postage,06/02/2013,86733,24.50,Revenue,Chorley BC Petty Cash,16301
Chorley Borough Council,http://statistics.data.gov.uk/id/local-authority/30UE,Development Control,1091,Chief Executives Office,External Photocopying,40048,"Printing, Stationery & General",5026,Diaries,06/02/2013,86733,9.17,Revenue,Chorley BC Petty Cash,16301
Chorley Borough Council,http://statistics.data.gov.uk/id/local-authority/30UE,Development Control,1091,Chief Executives Office,External Photocopying,40048,"Printing, Stationery & General",5026,Memory Card,06/02/2013,86733,13.32,Revenue,Chorley BC Petty Cash,16301
Chorley Borough Council,http://statistics.data.gov.uk/id/local-authority/30UE,Building Control,1090,Chief Executives Office,Stationery,40050,"Printing, Stationery & General",5026,Diaries Planning,06/02/2013,86733,7.47,Revenue,Chorley BC Petty Cash,16301
Chorley Borough Council,http://statistics.data.gov.uk/id/local-authority/30UE,Corporate Management,1008,Chief Executives Office,Miscellaneous Expenses,40200,Miscellaneous Expenses,5034,Starbust,06/02/2013,86733,5.00,Revenue,Chorley BC Petty Cash,16301
Chorley Borough Council,http://statistics.data.gov.uk/id/local-authority/30UE,Economic Development,1096,Chief Executives Office,Stationery,40050,"Printing, Stationery & General",5026,Diaries,06/02/2013,86733,4.99,Revenue,Chorley BC Petty Cash,16301
Chorley Borough Council,http://statistics.data.gov.uk/id/local-authority/30UE,Housing Benefit Administration,1077,Chief Executives Office,Miscellaneous Expenses,40200,Miscellaneous Expenses,5034,Birth certificates,06/02/2013,86733,10.00,Revenue,Chorley BC Petty Cash,16301
Chorley Borough Council,http://statistics.data.gov.uk/id/local-authority/30UE,Service Management & Support,1009,Chief Executives Office,Miscellaneous Expenses,40200,Miscellaneous Expenses,5034,Flowers,06/02/2013,86733,40.00,Revenue,Chorley BC Petty Cash,16301
Chorley Borough Council,http://statistics.data.gov.uk/id/local-authority/30UE,Planning Policy,1092,Chief Executives Office,Postages,40082,Communication and Computing,5028,Postage,06/02/2013,86733,5.90,Revenue,Chorley BC Petty Cash,16301
Chorley Borough Council,http://statistics.data.gov.uk/id/local-authority/30UE,Service Management & Support,1009,Chief Executives Office,Petrol,30005,Direct Transport Costs,5016,Fuel,06/02/2013,86733,3.42,Revenue,Chorley BC Petty Cash,16301
Chorley Borough Council,http://statistics.data.gov.uk/id/local-authority/30UE,Unapportionable Central OHeads,1009,Chief Executives Office,Computer Equipment-Purchase,40098,Communication and Computing,5028,Pedal Bin,06/02/2013,86733,14.99,Revenue,Chorley BC Petty Cash,16301
Chorley Borough Council,http://statistics.data.gov.uk/id/local-authority/30UE,Central Support Services,1009,Chief Executives Office,Computer Equipment-Purchase,40098,Communication and Computing,5028,Refreshments,06/02/2013,86733,4.00,Revenue,Chorley BC Petty Cash,16301
Chorley Borough Council,http://statistics.data.gov.uk/id/local-authority/30UE,Unapportionable Central OHeads,1009,Chief Executives Office,Refreshments,40036,Catering,5024,Milk,06/02/2013,86733,1.85,Revenue,Chorley BC Petty Cash,16301
Chorley Borough Council,http://statistics.data.gov.uk/id/local-authority/30UE,Community Development,1097,Chief Executives Office,Community Develop Initiatives,40185,Miscellaneous Expenses,5034,Misc Foad Items,06/02/2013,86733,16.53,Revenue,Chorley BC Petty Cash,16301
Chorley Borough Council,http://statistics.data.gov.uk/id/local-authority/30UE,Economic Development,1096,Economic Development,Miscellaneous Expenses,40200,Miscellaneous Expenses,5034,Contribution to Apprentice Costs over 2 years,06/02/2013,86680,"13,000.00",Revenue,Chorley Community Housing,20531
Chorley Borough Council,http://statistics.data.gov.uk/id/local-authority/30UE,Economic Development,1096,Economic Development,Grants To Other Organisations,40127,Grants and Subscriptions,5031,Starting in Business Grant - Capital Expenditure,20/02/2013,86928,"1,000.00",Revenue,Chorley Florist,58158
Chorley Borough Council,http://statistics.data.gov.uk/id/local-authority/30UE,Service Management & Support,1009,Streetscene & Leisure Contracts,Transport Operating Leases,30029,Contrct Hire & Operating Lease,5018,Rental of Schmidt Swingo Compact Sweeper AE55 HKK from 28th Feb to 29th March 2013,27/02/2013,87087,250.00,Revenue,Chrystal Consulting,17613
Chorley Borough Council,http://statistics.data.gov.uk/id/local-authority/30UE,Corporate Management,1008,Shared Service Arrangement,Professional Fees,14011,Direct Employee Expenses,5001,Membership Renewal ,27/02/2013,87129,300.00,Revenue,CIPFA,16201
Chorley Borough Council,http://statistics.data.gov.uk/id/local-authority/30UE,Unapportionable Central OHeads,1009,Shared Service Arrangement,Professional Fees,14011,Direct Employee Expenses,5001,Membership Renewal ,27/02/2013,87130,300.00,Revenue,CIPFA,16201
Chorley Borough Council,http://statistics.data.gov.uk/id/local-authority/30UE,Central Support Services,1009,Policy & Performance,Publicity - Advertising,40157,Miscellaneous Expenses,5034,To re-format web pages,08/02/2013,86761,850.00,Revenue,Civica UK Limited,17463
Chorley Borough Council,http://statistics.data.gov.uk/id/local-authority/30UE,Central Support Services,1009,Shared Service Arrangement,IT Software - Annual Licences,40101,Communication and Computing,5028,"Authority Financials, Licence, Support and Maintenance. ",25/02/2013,87004,"35,746.11",Revenue,Civica UK Limited,17463
Chorley Borough Council,http://statistics.data.gov.uk/id/local-authority/30UE,Parking Services,1066,Streetscene & Leisure Contracts,Special Repairs,20007,Repairs Maintenance & Alts,5005,Relocating advertising unit at Flat Iron car park Disc from existing site at Chorley Pals memorial & relocate ,27/02/2013,86155,"3,625.00",Revenue,Clear Channel UK Ltd,19544
Chorley Borough Council,http://statistics.data.gov.uk/id/local-authority/30UE,Public Transport,1067,Streetscene & Leisure Contracts,Bus Shelters -Maintenance,20062,Grounds Maintenance Costs,5013,Supply and install 7 new bus shelters as per your tender,27/02/2013,86894,"12,040.00",Revenue,Commitaports,56228
Chorley Borough Council,http://statistics.data.gov.uk/id/local-authority/30UE,Corporate Management,1008,Streetscene & Leisure Contracts,Maintenance Street Furniture,20055,Grounds Maintenance Costs,5013,Carryout reinstalling of bus shelter on Clayton Brook Rd has requested by Chorley Council at price agreed,27/02/2013,86894,400.00,Revenue,Commitaports,56228
Chorley Borough Council,http://statistics.data.gov.uk/id/local-authority/30UE,Economic Development,1096,Economic Development,Grants To Other Organisations,40127,Grants and Subscriptions,5031,Starting in Business grant - Capital Expenditure,20/02/2013,86888,332.21,Revenue,ComputaCare,58144
Chorley Borough Council,http://statistics.data.gov.uk/id/local-authority/30UE,Community Development,1097,Governance,Grants To Other Organisations,40127,Grants and Subscriptions,5031,Grant & Subsricption,20/02/2013,86924,250.00,Revenue,Croston Community Links,22113
Chorley Borough Council,http://statistics.data.gov.uk/id/local-authority/30UE,Democratic Represent and  Mgnt,1007,Streetscene & Leisure Contracts,Conservation Of Exhibits,40059,Services,5027,To replace 7 existing blinds with Flange ended system utilising a Black Out Fabric Colour ,13/02/2013,86687,"2,980.00",Revenue,CSC Window Films & Blinds,56388
Chorley Borough Council,http://statistics.data.gov.uk/id/local-authority/30UE,Economic Development,1096,Economic Development,Grants To Other Organisations,40127,Grants and Subscriptions,5031,Starting in Business Grant - Capital Expenditure,20/02/2013,86889,603.76,Revenue,NAME REDACTED,58117
Chorley Borough Council,http://statistics.data.gov.uk/id/local-authority/30UE,Unapportionable Central OHeads,1009,Governance,Fixtures & Fittings - Purchase,20027,Fixtures and Fittings,5010,"Fire for the Mayor`s Parlour, Chorley Town Hall: Chalbury, Brass surround, black grate (CHB20BR)",20/02/2013,86992,590.00,Revenue,Firecraft Fireplaces,57087
Chorley Borough Council,http://statistics.data.gov.uk/id/local-authority/30UE,Service Management & Support,1009,Streetscene & Leisure Contracts,Hire Of Transport,30028,Contrct Hire & Operating Lease,5018,Hire of Sweeper,27/02/2013,86713,"2,162.00",Revenue,Dawson Rental Sweepers,22011
Chorley Borough Council,http://statistics.data.gov.uk/id/local-authority/30UE,Service Management & Support,1009,Streetscene & Leisure Contracts,Hire Of Transport,30028,Contrct Hire & Operating Lease,5018,Hire of Schmidt Swingo 250 for 16 week period at price quoted,13/02/2013,86714,"1,416.00",Revenue,Dawson Rental Sweepers,22011
Chorley Borough Council,http://statistics.data.gov.uk/id/local-authority/30UE,Service Management & Support,1009,Streetscene & Leisure Contracts,Hire Of Transport,30028,Contrct Hire & Operating Lease,5018,Hire of Johnston VT650 16 week period at price quoted,13/02/2013,86715,"1,270.00",Revenue,Dawson Rental Sweepers,22011
Chorley Borough Council,http://statistics.data.gov.uk/id/local-authority/30UE,Precepts and Collection Fund,Precept,Shared Service Arrangement,NNDR Pool Contributions,2007,Precepts & Collection Fund,Precept,NNDR Contribution,27/02/2013,87046,"257,390.12",Revenue,Department of Communities and Local Government,16280
Chorley Borough Council,http://statistics.data.gov.uk/id/local-authority/30UE,Local Tax Collection,1010,Shared Service Arrangement,NNDR Collection Allowance,60003,"Other Grants, Reimbursements a",5063,Cost of Collection,27/02/2013,87046,"-5,314.12",Revenue,Department of Communities and Local Government,16280
Chorley Borough Council,http://statistics.data.gov.uk/id/local-authority/30UE,Precepts and Collection Fund,Precept,Shared Service Arrangement,NNDR Pool Redistribution,2006,Precepts & Collection Fund,Precept,NNDR Entitlement,27/02/2013,87046,"-59,280.00",Revenue,Department of Communities and Local Government,16280
Chorley Borough Council,http://statistics.data.gov.uk/id/local-authority/30UE,Precepts and Collection Fund,Precept,Shared Service Arrangement,RSG,2005,Precepts & Collection Fund,Precept,RSG Entitlement,27/02/2013,87046,"-20,685.00",Revenue,Department of Communities and Local Government,16280
Chorley Borough Council,http://statistics.data.gov.uk/id/local-authority/30UE,Precepts and Collection Fund,Precept,Shared Service Arrangement,NNDR Pool Contributions,2007,Precepts & Collection Fund,Precept,NNDR Contribution,27/02/2013,87047,"257,390.12",Revenue,Department of Communities and Local Government,16280
Chorley Borough Council,http://statistics.data.gov.uk/id/local-authority/30UE,Local Tax Collection,1010,Shared Service Arrangement,NNDR Collection Allowance,60003,"Other Grants, Reimbursements a",5063,Cost of Collection,27/02/2013,87047,"-5,314.12",Revenue,Department of Communities and Local Government,16280
Chorley Borough Council,http://statistics.data.gov.uk/id/local-authority/30UE,Precepts and Collection Fund,Precept,Shared Service Arrangement,NNDR Pool Redistribution,2006,Precepts & Collection Fund,Precept,NNDR Entitlement,27/02/2013,87047,"-59,281.00",Revenue,Department of Communities and Local Government,16280
Chorley Borough Council,http://statistics.data.gov.uk/id/local-authority/30UE,Precepts and Collection Fund,Precept,Shared Service Arrangement,RSG,2005,Precepts & Collection Fund,Precept,RSG Entitlement,27/02/2013,87047,"-20,684.00",Revenue,Department of Communities and Local Government,16280
Chorley Borough Council,http://statistics.data.gov.uk/id/local-authority/30UE,Democratic Represent and  Mgnt,1007,Streetscene & Leisure Contracts,Grounds Maintenance Contractor,20043,Grounds Maintenance Costs,5013,Ditch Pond Maintenance at Withnell Local Nature Reserve as discussed on site,06/02/2013,86588,475.00,Revenue,NAME REDACTED,21092
Chorley Borough Council,http://statistics.data.gov.uk/id/local-authority/30UE,Economic Development,1096,Economic Development,Grants To Other Organisations,40127,Grants and Subscriptions,5031,Starting in Business Grant - Capital Expenditure,13/02/2013,86750,"1,000.00",Revenue,DigiEnable,57999
Chorley Borough Council,http://statistics.data.gov.uk/id/local-authority/30UE,Recreation & Sport,1037,Health Environment & Neighbourhoods,Other Fees,40212,Miscellaneous Expenses,5034,To provide Legea sports clothing as detailed and described within order plan to follow. ,20/02/2013,86996,"2,585.02",Revenue,Eclipse (Sports) UK,17401
Chorley Borough Council,http://statistics.data.gov.uk/id/local-authority/30UE,Unapportionable Central OHeads,1009,"Customer, ICT & Transactional",Computer Software-Maintenance,40107,Communication and Computing,5028,Local View Fusion Online Community solution November 2012 - 31 March 2013,06/02/2013,86452,"3,150.00",Revenue,ESRI (UK) Ltd,19692
Chorley Borough Council,http://statistics.data.gov.uk/id/local-authority/30UE,Unapportionable Central OHeads,1009,"Customer, ICT & Transactional",Computer Software-Maintenance,40107,Communication and Computing,5028,ArcGIS Server Enterprise Standard (up to 4 cores) maintenance,06/02/2013,86453,"4,867.50",Revenue,ESRI (UK) Ltd,19692
Chorley Borough Council,http://statistics.data.gov.uk/id/local-authority/30UE,Unapportionable Central OHeads,1009,"Customer, ICT & Transactional",Computer Software-Maintenance,40107,Communication and Computing,5028,ArcEditor Concurrent Use Primary Maintenance,06/02/2013,86453,"1,068.75",Revenue,ESRI (UK) Ltd,19692
Chorley Borough Council,http://statistics.data.gov.uk/id/local-authority/30UE,Central Support Services,1009,"Customer, ICT & Transactional",Computer Software-Maintenance,40107,Communication and Computing,5028,ArcView Single Use Primary Maintenance,06/02/2013,86453,318.75,Revenue,ESRI (UK) Ltd,19692
Chorley Borough Council,http://statistics.data.gov.uk/id/local-authority/30UE,Unapportionable Central OHeads,1009,"Customer, ICT & Transactional",Computer Software-Maintenance,40107,Communication and Computing,5028,ArcView Single Use Secondary Maintenance,06/02/2013,86453,"1,548.75",Revenue,ESRI (UK) Ltd,19692
Chorley Borough Council,http://statistics.data.gov.uk/id/local-authority/30UE,Central Support Services,1009,"Customer, ICT & Transactional",Computer Software-Maintenance,40107,Communication and Computing,5028,EDN (ESRI Developer Network) subscription renewal,06/02/2013,86453,746.25,Revenue,ESRI (UK) Ltd,19692
Chorley Borough Council,http://statistics.data.gov.uk/id/local-authority/30UE,Unapportionable Central OHeads,1009,"Customer, ICT & Transactional",Computer Software-Maintenance,40107,Communication and Computing,5028,Productivity Suite Government Site Maintenance,06/02/2013,86453,862.50,Revenue,ESRI (UK) Ltd,19692
Chorley Borough Council,http://statistics.data.gov.uk/id/local-authority/30UE,Economic Development,1096,Economic Development,Publicity - Advertising,40157,Miscellaneous Expenses,5034,Half Page Full Colour Advert in Coach Drivers Club Yearkbook 2013/2014 North West Section,27/02/2013,87132,450.00,Revenue,Expo Management Ltd (Coach Monthly),20551
Chorley Borough Council,http://statistics.data.gov.uk/id/local-authority/30UE,Service Management & Support,1009,Streetscene & Leisure Contracts,Hire Of Transport,30028,Contrct Hire & Operating Lease,5018,Supply hire tractor with loader ,01/02/2013,86603,295.00,Revenue,F R Sharrock Ltd,18091
Chorley Borough Council,http://statistics.data.gov.uk/id/local-authority/30UE,Service Management & Support,1009,Streetscene & Leisure Contracts,External Contractor,40198,Miscellaneous Expenses,5034,Remove broken limbs from 2 damaged Pine trees at Chorley cemetry at price quoted.,20/02/2013,86912,390.00,Revenue,Fassfern Forestry,54839
Chorley Borough Council,http://statistics.data.gov.uk/id/local-authority/30UE,Service Management & Support,1009,Streetscene & Leisure Contracts,Freight Transport Assoc Fees,40150,Grants and Subscriptions,5031,Carryout 6 weekly inspections as on invoice No 8189016 for Olicence compliance,25/02/2013,86705,686.00,Revenue,Freight Transport Assoc Ltd,16333
Chorley Borough Council,http://statistics.data.gov.uk/id/local-authority/30UE,Service Management & Support,1009,Streetscene & Leisure Contracts,Freight Transport Assoc Fees,40150,Grants and Subscriptions,5031,Carryout 6 weekly inspections as on invoice No 8190814 for Olicence compliance,25/02/2013,86896,547.50,Revenue,Freight Transport Assoc Ltd,16333
Chorley Borough Council,http://statistics.data.gov.uk/id/local-authority/30UE,Service Management & Support,1009,Streetscene & Leisure Contracts,Freight Transport Assoc Fees,40150,Grants and Subscriptions,5031,Carryout 6 weekly inspection as on invoice No 8185012,25/02/2013,86897,547.50,Revenue,Freight Transport Assoc Ltd,16333
Chorley Borough Council,http://statistics.data.gov.uk/id/local-authority/30UE,Service Management & Support,1009,Streetscene & Leisure Contracts,Freight Transport Assoc Fees,40150,Grants and Subscriptions,5031,Carryout 6 weekly inspections as on invoice No 8183447 for Operator compliance,25/02/2013,86898,881.60,Revenue,Freight Transport Assoc Ltd,16333
Chorley Borough Council,http://statistics.data.gov.uk/id/local-authority/30UE,Service Management & Support,1009,Streetscene & Leisure Contracts,Freight Transport Assoc Fees,40150,Grants and Subscriptions,5031,carryout 6 weekly inspection as on invoice No 8179598 for Operator Licence compliance,25/02/2013,86899,767.40,Revenue,Freight Transport Assoc Ltd,16333
Chorley Borough Council,http://statistics.data.gov.uk/id/local-authority/30UE,Recreation & Sport,1037,Streetscene & Leisure Contracts,Security Service,40062,Services,5027,Leisure centres,20/02/2013,86951,233.78,Revenue,G4S Cash Solutions UK Ltd,22099
Chorley Borough Council,http://statistics.data.gov.uk/id/local-authority/30UE,Central Support Services,1009,Streetscene & Leisure Contracts,Security Service,40062,Services,5027,Union Street,20/02/2013,86951,47.49,Revenue,G4S Cash Solutions UK Ltd,22099
Chorley Borough Council,http://statistics.data.gov.uk/id/local-authority/30UE,Homelessness,1075,Streetscene & Leisure Contracts,Security Service,40062,Services,5027,Cotswold house,20/02/2013,86951,23.75,Revenue,G4S Cash Solutions UK Ltd,22099
Chorley Borough Council,http://statistics.data.gov.uk/id/local-authority/30UE,Business Support,1095,Governance,Gas,20014,Energy Costs,5006,Gas at Gillibrand Street,27/02/2013,86955,899.87,Revenue,Gazprom Energy,56502
Chorley Borough Council,http://statistics.data.gov.uk/id/local-authority/30UE,Business Support,1095,Governance,Gas,20014,Energy Costs,5006,Gas at Gillibrand street,27/02/2013,86956,296.53,Revenue,Gazprom Energy,56502
Chorley Borough Council,http://statistics.data.gov.uk/id/local-authority/30UE,Democratic Represent and  Mgnt,1007,Governance,Conferences - Members,40121,Expenses,5030,Conference - Councillor Steve Holgate `Putting a Roof over Britain: The future of housing in the UK`,20/02/2013,86954,275.00,Revenue,Government Knowledge,58297
Chorley Borough Council,http://statistics.data.gov.uk/id/local-authority/30UE,Corporate Management,1008,Health Environment & Neighbourhoods,Vandalism Repairs,20005,Repairs Maintenance & Alts,5005,Contract for detection and removal of graffiti and proactive value added cleaning work.,01/02/2013,86612,"1,662.50",Revenue,Graffiti Removal (North) Ltd,17320
Chorley Borough Council,http://statistics.data.gov.uk/id/local-authority/30UE,Capital,Capital,Streetscene & Leisure Contracts,Main Contractor,3007,Capital Expenditure,Capital,Final Payment for Yarrow Valley Country Park Natural Play Area,06/02/2013,86423,"1,544.57",Capital,Groundwork Landscape Ltd,47616
Chorley Borough Council,http://statistics.data.gov.uk/id/local-authority/30UE,Development Control,1091,Planning,Consultants` Fees,40077,Services,5027,Group One Buckshaw - BAE Systems Re-analysis report together in response to BAE Systems advisers,08/02/2013,86595,840.00,Revenue,GVA Grimley LLP,18925
Chorley Borough Council,http://statistics.data.gov.uk/id/local-authority/30UE,Homelessness,1075,Shared Service Arrangement,HM Land Registry Fees,40174,Miscellaneous Expenses,5034,Land Registry,27/02/2013,87058,6.00,Revenue,H M Land Registry,17567
Chorley Borough Council,http://statistics.data.gov.uk/id/local-authority/30UE,Housing Strategy,1069,Shared Service Arrangement,HM Land Registry Fees,40174,Miscellaneous Expenses,5034,Land Registry,27/02/2013,87058,9.00,Revenue,H M Land Registry,17567
Chorley Borough Council,http://statistics.data.gov.uk/id/local-authority/30UE,Central Support Services,1009,Shared Service Arrangement,HM Land Registry Fees,40174,Miscellaneous Expenses,5034,Land Registry,27/02/2013,87058,18.00,Revenue,H M Land Registry,17567
Chorley Borough Council,http://statistics.data.gov.uk/id/local-authority/30UE,Unapportionable Central OHeads,1009,Shared Service Arrangement,HM Land Registry Fees,40174,Miscellaneous Expenses,5034,Land Registry,27/02/2013,87058,96.00,Revenue,H M Land Registry,17567
Chorley Borough Council,http://statistics.data.gov.uk/id/local-authority/30UE,Local Tax Collection,1010,Shared Service Arrangement,HM Land Registry Fees,40174,Miscellaneous Expenses,5034,Land Registry,27/02/2013,87058,6.00,Revenue,H M Land Registry,17567
Chorley Borough Council,http://statistics.data.gov.uk/id/local-authority/30UE,Development Control,1091,Shared Service Arrangement,HM Land Registry Fees,40174,Miscellaneous Expenses,5034,Land Registry,27/02/2013,87058,151.00,Revenue,H M Land Registry,17567
Chorley Borough Council,http://statistics.data.gov.uk/id/local-authority/30UE,Service Management Support,1009,Shared Service Arrangement,HM Land Registry Fees,40174,Miscellaneous Expenses,5034,Land Registry,27/02/2013,87058,32.00,Revenue,H M Land Registry,17567
Chorley Borough Council,http://statistics.data.gov.uk/id/local-authority/30UE,Housing Benefit Administration,1077,Shared Service Arrangement,HM Land Registry Fees,40174,Miscellaneous Expenses,5034,Land Registry,27/02/2013,87058,6.00,Revenue,H M Land Registry,17567
Chorley Borough Council,http://statistics.data.gov.uk/id/local-authority/30UE,Unapportionable Central OHeads,1009,Shared Service Arrangement,HM Land Registry Fees,40174,Miscellaneous Expenses,5034,Land Registry,27/02/2013,87059,14.00,Revenue,H M Land Registry,17567
Chorley Borough Council,http://statistics.data.gov.uk/id/local-authority/30UE,Unapportionable Central OHeads,1009,Shared Service Arrangement,HM Land Registry Fees,40174,Miscellaneous Expenses,5034,Land Registry,27/02/2013,87059,25.00,Revenue,H M Land Registry,17567
Chorley Borough Council,http://statistics.data.gov.uk/id/local-authority/30UE,Local Tax Collection,1010,Shared Service Arrangement,HM Land Registry Fees,40174,Miscellaneous Expenses,5034,Land Registry,27/02/2013,87059,9.00,Revenue,H M Land Registry,17567
Chorley Borough Council,http://statistics.data.gov.uk/id/local-authority/30UE,Development Control,1091,Shared Service Arrangement,HM Land Registry Fees,40174,Miscellaneous Expenses,5034,Land Registry,27/02/2013,87059,191.00,Revenue,H M Land Registry,17567
Chorley Borough Council,http://statistics.data.gov.uk/id/local-authority/30UE,Democratic Represent and  Mgnt,1007,Shared Service Arrangement,HM Land Registry Fees,40174,Miscellaneous Expenses,5034,Land Registry,27/02/2013,87059,75.00,Revenue,H M Land Registry,17567
Chorley Borough Council,http://statistics.data.gov.uk/id/local-authority/30UE,Housing Benefit Administration,1077,Shared Service Arrangement,HM Land Registry Fees,40174,Miscellaneous Expenses,5034,Land Registry,27/02/2013,87059,3.00,Revenue,H M Land Registry,17567
Chorley Borough Council,http://statistics.data.gov.uk/id/local-authority/30UE,Central Support Services,1009,Shared Service Arrangement,HM Land Registry Fees,40174,Miscellaneous Expenses,5034,Land Registry,27/02/2013,87060,42.00,Revenue,H M Land Registry,17567
Chorley Borough Council,http://statistics.data.gov.uk/id/local-authority/30UE,Local Tax Collection,1010,Shared Service Arrangement,HM Land Registry Fees,40174,Miscellaneous Expenses,5034,Land Registry,27/02/2013,87060,15.00,Revenue,H M Land Registry,17567
Chorley Borough Council,http://statistics.data.gov.uk/id/local-authority/30UE,Development Control,1091,Shared Service Arrangement,HM Land Registry Fees,40174,Miscellaneous Expenses,5034,Land Registry,27/02/2013,87060,114.00,Revenue,H M Land Registry,17567
Chorley Borough Council,http://statistics.data.gov.uk/id/local-authority/30UE,Service Management Support,1009,Shared Service Arrangement,HM Land Registry Fees,40174,Miscellaneous Expenses,5034,Land Registry,27/02/2013,87060,86.00,Revenue,H M Land Registry,17567
Chorley Borough Council,http://statistics.data.gov.uk/id/local-authority/30UE,Housing Benefit Administration,1077,Shared Service Arrangement,HM Land Registry Fees,40174,Miscellaneous Expenses,5034,Land Registry,27/02/2013,87060,9.00,Revenue,H M Land Registry,17567
Chorley Borough Council,http://statistics.data.gov.uk/id/local-authority/30UE,Capital,Capital,"Customer, ICT & Transactional",Equipment,3014,Capital Expenditure,Capital,"Installation of 4 x dual Cat5e Network outlets in the top floor of Union St offices, ",27/02/2013,87108,366.00,Capital,Interconnect Network Systems,21292
Chorley Borough Council,http://statistics.data.gov.uk/id/local-authority/30UE,Service Management & Support,1009,Streetscene & Leisure Contracts,Vehicle Trackers,30046,Direct Transport Costs,5016,Yearly lease rental for vehicle tracking system,25/02/2013,85538,795.80,Revenue,Investec Asset Finance Plc,53879
Chorley Borough Council,http://statistics.data.gov.uk/id/local-authority/30UE,Service Management & Support,1009,Streetscene & Leisure Contracts,Supplies-Grounds Maintenance,40025,"Equipment, Furniture & Materia",5023,Supply street name plate posts galvanised 1200mm x 76 diameter deliver to Bengal St depot,20/02/2013,86904,497.70,Revenue,Jewsons Limited,17844
Chorley Borough Council,http://statistics.data.gov.uk/id/local-authority/30UE,Service Management & Support,1009,Streetscene & Leisure Contracts,Supplies & Consumables -Street Cleansing,40235,"Equipment, Furniture & Materia",5023,Supply litterpickers 695mm No PM126268,20/02/2013,86904,37.80,Revenue,Jewsons Limited,17844
Chorley Borough Council,http://statistics.data.gov.uk/id/local-authority/30UE,Service Management & Support,1009,Streetscene & Leisure Contracts,Supplies & Consumables -Street Cleansing,40235,"Equipment, Furniture & Materia",5023,Supply yellow line marker spray can 750mm  No EQJLMSYL,20/02/2013,86904,32.16,Revenue,Jewsons Limited,17844
Chorley Borough Council,http://statistics.data.gov.uk/id/local-authority/30UE,Service Management & Support,1009,Streetscene & Leisure Contracts,Supplies & Consumables -Street Cleansing,40235,"Equipment, Furniture & Materia",5023,Supply torch haevy duty 6 volt No PM008614,20/02/2013,86904,46.70,Revenue,Jewsons Limited,17844
Chorley Borough Council,http://statistics.data.gov.uk/id/local-authority/30UE,Service Management & Support,1009,Streetscene & Leisure Contracts,Supplies & Consumables -Street Cleansing,40235,"Equipment, Furniture & Materia",5023,Supply Newcastle Drainer spade YD handle No Neila209,20/02/2013,86904,76.44,Revenue,Jewsons Limited,17844
Chorley Borough Council,http://statistics.data.gov.uk/id/local-authority/30UE,Service Management & Support,1009,Streetscene & Leisure Contracts,Supplies-Grounds Maintenance,40025,"Equipment, Furniture & Materia",5023,Street name post,08/02/2013,86963,497.70,Revenue,Jewsons Limited,17844
Chorley Borough Council,http://statistics.data.gov.uk/id/local-authority/30UE,Central Support Services,1009,"Customer, ICT & Transactional",Consultants` Fees,40077,Services,5027,Consultancy services as agreed with Chorley Council 13 Days for Customer ICT and Transactional Services,13/02/2013,86900,"2,600.00",Revenue,REDACTED PERSONAL DATA,21745
Chorley Borough Council,http://statistics.data.gov.uk/id/local-authority/30UE,Unapportionable Central OHeads,1009,"Customer, ICT & Transactional",Consultants` Fees,40077,Services,5027,4 days for Policy and Performance,13/02/2013,86900,800.00,Revenue,REDACTED PERSONAL DATA,21745
Chorley Borough Council,http://statistics.data.gov.uk/id/local-authority/30UE,Corporate Management,1008,Shared Service Arrangement,Employee Related Insurance,18003,Indirect Employee Expenses,5002,Personal Accident Insurance,20/02/2013,86678,"1,397.20",Revenue,JLT Speciality Ltd,52747
Chorley Borough Council,http://statistics.data.gov.uk/id/local-authority/30UE,Corporate Management,1008,Shared Service Arrangement,Employee Related Insurance,18003,Indirect Employee Expenses,5002,Contractors All Risk and Terrorism Insurance,20/02/2013,86679,"1,256.58",Revenue,JLT Speciality Ltd,52747
Chorley Borough Council,http://statistics.data.gov.uk/id/local-authority/30UE,Corporate Management,1008,Shared Service Arrangement,Employee Related Insurance,18003,Indirect Employee Expenses,5002,Propert and Terrorism Insurance,20/02/2013,86970,"69,411.16",Revenue,JLT Speciality Ltd,52747
Chorley Borough Council,http://statistics.data.gov.uk/id/local-authority/30UE,Corporate Management,1008,Shared Service Arrangement,Employee Related Insurance,18003,Indirect Employee Expenses,5002,Computer and Computer Terrorism Insurance,20/02/2013,86971,"4,351.37",Revenue,JLT Speciality Ltd,52747
Chorley Borough Council,http://statistics.data.gov.uk/id/local-authority/30UE,Service Management & Support,1009,Streetscene & Leisure Contracts,Supplies-Grounds Maintenance,40025,"Equipment, Furniture & Materia",5023,Supply flags as required for Union St car park,20/02/2013,86704,35.06,Revenue,John H Mayor & Sons Ltd,16635
Chorley Borough Council,http://statistics.data.gov.uk/id/local-authority/30UE,Service Management & Support,1009,Streetscene & Leisure Contracts,Supplies-Grounds Maintenance,40025,"Equipment, Furniture & Materia",5023,1 Roll of 2 m x 50 menbrane,20/02/2013,86704,94.36,Revenue,John H Mayor & Sons Ltd,16635
Chorley Borough Council,http://statistics.data.gov.uk/id/local-authority/30UE,Service Management & Support,1009,Streetscene & Leisure Contracts,Supplies-Grounds Maintenance,40025,"Equipment, Furniture & Materia",5023,Supply fencing materials as requested,20/02/2013,86704,460.40,Revenue,John H Mayor & Sons Ltd,16635
Chorley Borough Council,http://statistics.data.gov.uk/id/local-authority/30UE,Service Management & Support,1009,Streetscene & Leisure Contracts,Supplies-Grounds Maintenance,40025,"Equipment, Furniture & Materia",5023,Supply bags of quick set cement already collected 10/01/2013,20/02/2013,86704,140.00,Revenue,John H Mayor & Sons Ltd,16635
Chorley Borough Council,http://statistics.data.gov.uk/id/local-authority/30UE,Open Spaces,1038,Streetscene & Leisure Contracts,Grounds Maintenance Contractor,20043,Grounds Maintenance Costs,5013,30 @ 3.6m x 75mm x75mm,20/02/2013,86704,158.10,Revenue,John H Mayor & Sons Ltd,16635
Chorley Borough Council,http://statistics.data.gov.uk/id/local-authority/30UE,Democratic Represent and  Mgnt,1007,Streetscene & Leisure Contracts,Grounds Maintenance Contractor,20043,Grounds Maintenance Costs,5013,40 @ 1.2m x 75mm x 75mm Birdsmouth,20/02/2013,86704,104.00,Revenue,John H Mayor & Sons Ltd,16635
Chorley Borough Council,http://statistics.data.gov.uk/id/local-authority/30UE,Open Spaces,1038,Streetscene & Leisure Contracts,Grounds Maintenance Contractor,20043,Grounds Maintenance Costs,5013,40 Kneerail straps at 75mm wide,20/02/2013,86704,18.20,Revenue,John H Mayor & Sons Ltd,16635
Chorley Borough Council,http://statistics.data.gov.uk/id/local-authority/30UE,Democratic Represent and  Mgnt,1007,Streetscene & Leisure Contracts,Grounds Maintenance Contractor,20043,Grounds Maintenance Costs,5013,10 ft Wooden field gate,20/02/2013,86704,91.38,Revenue,John H Mayor & Sons Ltd,16635
Chorley Borough Council,http://statistics.data.gov.uk/id/local-authority/30UE,Open Spaces,1038,Streetscene & Leisure Contracts,Grounds Maintenance Contractor,20043,Grounds Maintenance Costs,5013,Adjust gate,20/02/2013,86704,12.04,Revenue,John H Mayor & Sons Ltd,16635
Chorley Borough Council,http://statistics.data.gov.uk/id/local-authority/30UE,Housing Advice,1071,Policy & Performance,Publicity - Advertising,40157,Miscellaneous Expenses,5034,Half page advert for the Warm Homes Healthy People campaign in the Chorley Guardian,06/02/2013,86661,816.01,Revenue,Johnston Publishing Ltd,20072
Chorley Borough Council,http://statistics.data.gov.uk/id/local-authority/30UE,Corporate Management,1008,Health Environment & Neighbourhoods,Impounded Dogs Costs,40207,Miscellaneous Expenses,5034,Kennelling fees for 2012/13,06/02/2013,86689,872.50,Revenue,K A Dewhurst,16734
Chorley Borough Council,http://statistics.data.gov.uk/id/local-authority/30UE,Community Safety Crime Reduct,1043,Health Environment & Neighbourhoods,Impounded Dogs Costs,40207,Miscellaneous Expenses,5034,Kennelling fees for 2012/13,06/02/2013,86690,727.50,Revenue,K A Dewhurst,16734
Chorley Borough Council,http://statistics.data.gov.uk/id/local-authority/30UE,Control Accounts,Control,Shared Service Arrangement,General Balances,100,Balance Sheet,Balance,Month 11,27/02/2013,87070,958.75,Revenue,Labour Councillors Association,17577
Chorley Borough Council,http://statistics.data.gov.uk/id/local-authority/30UE,Control Accounts,Control,Shared Service Arrangement,Manual Control Account,1,Balance Sheet,Balance,REFUND,27/02/2013,CRREF19,"232,950.00",Revenue,Lancashire Combined Fire Authority Headquarters,22209
Chorley Borough Council,http://statistics.data.gov.uk/id/local-authority/30UE,Planning Policy,1092,Shared Service Arrangement,Pensions Increase Act Payments,18005,Indirect Employee Expenses,5002,Pension Strain in respect of Quarter ending 30th June 2012,08/02/2013,86799,"45,340.73",Revenue,Lancashire County Council,17758
Chorley Borough Council,http://statistics.data.gov.uk/id/local-authority/30UE,Planning Policy,1092,Shared Service Arrangement,Pensions Increase Act Payments,18005,Indirect Employee Expenses,5002,Pension Strain in respect of Quarter ending 30th June 2012,08/02/2013,86799,"7,324.41",Revenue,Lancashire County Council,17758
Chorley Borough Council,http://statistics.data.gov.uk/id/local-authority/30UE,Parking Services,1066,Streetscene & Leisure Contracts,Car Park Lamps,20064,Grounds Maintenance Costs,5013,CONFIRMATION ORDER for repairs works to lighting and electricals at the Flat Iron,27/02/2013,86868,529.51,Revenue,Lancashire County Council,17758
Chorley Borough Council,http://statistics.data.gov.uk/id/local-authority/30UE,Parking Services,1066,Streetscene & Leisure Contracts,Car Park Lamps,20064,Grounds Maintenance Costs,5013,",� Repairs to Lighting Columns on Chorley Council�s car parks at detailed in e-mail of 18 Dec 2012 ",13/02/2013,86869,"1,764.00",Revenue,Lancashire County Council,17758
Chorley Borough Council,http://statistics.data.gov.uk/id/local-authority/30UE,Capital,Capital,Housing,Grants,3002,Capital Expenditure,Capital,Capital Works - Disable Facility Grant,20/02/2013,86919,"5,418.00",Capital,Lancashire County Council,17758
Chorley Borough Council,http://statistics.data.gov.uk/id/local-authority/30UE,Capital,Capital,Housing,Grants,3002,Capital Expenditure,Capital,Capital Works - Disable Facvility Grant,20/02/2013,86920,"7,900.00",Capital,Lancashire County Council,17758
Chorley Borough Council,http://statistics.data.gov.uk/id/local-authority/30UE,Unapportionable Central OHeads,1009,Shared Service Arrangement,Pensions Increase Act Payments,18005,Indirect Employee Expenses,5002,Pension Recharge,27/02/2013,87043,"19,051.44",Revenue,Lancashire County Council,18386
Chorley Borough Council,http://statistics.data.gov.uk/id/local-authority/30UE,Precepts and Collection Fund,Precepts,Shared Service Arrangement,LCC Precept,2009,Precepts & Collection Fund,Precept,Precept,27/02/2013,87045,"4,012,445.00",Revenue,Lancashire County Council,18386
Chorley Borough Council,http://statistics.data.gov.uk/id/local-authority/30UE,Precepts and Collection Fund,Precepts,Shared Service Arrangement,LPA Precept,2010,Precepts & Collection Fund,Precept,Precept Feb,27/02/2013,87044,"542,719.00",Revenue,Lancashire Police Authority,17438
Chorley Borough Council,http://statistics.data.gov.uk/id/local-authority/30UE,Corporate Management,1008,Health Environment & Neighbourhoods,Clinical Waste Collection,50007,Private Contractors,5042,Disposal of Clinical waste,08/02/2013,86494,"1,005.29",Revenue,Lancashire Teaching Hospitals NHS FT,19003
Chorley Borough Council,http://statistics.data.gov.uk/id/local-authority/30UE,Unapportionable Central OHeads,1009,HR & Org. Development,Service Fees,40056,Services,5027,Medical Questionnaire Assessments/Consultant Assessments,20/02/2013,86789,570.00,Revenue,Lancashire Teaching Hospitals NHS FT,19003
Chorley Borough Council,http://statistics.data.gov.uk/id/local-authority/30UE,Central Support Services,1009,HR & Org. Development,Service Fees,40056,Services,5027,Medical Questionnaire Assessments/Consultant Assessments,20/02/2013,86789,46.50,Revenue,Lancashire Teaching Hospitals NHS FT,19003
Chorley Borough Council,http://statistics.data.gov.uk/id/local-authority/30UE,Precepts and Collection Fund,Precepts,Shared Service Arrangement,LCFA Precept,2011,Precepts & Collection Fund,Precept,Precept,27/02/2013,87042,"232,950.00",Revenue,Lancs Combined Fire Authority,17768
Chorley Borough Council,http://statistics.data.gov.uk/id/local-authority/30UE,Corporate Management,1008,Streetscene & Leisure Contracts,Addn'L Services Payment,50010,Private Contractors,5042,LARAC membership fees 2013-14,25/02/2013,86967,380.00,Revenue,Larac,16550
Chorley Borough Council,http://statistics.data.gov.uk/id/local-authority/30UE,Economic Development,1096,Economic Development,Grants To Other Organisations,40127,Grants and Subscriptions,5031,Starting in Business Grant - Capital Expenditure,13/02/2013,86805,818.66,Revenue,Leanne Chew,57303
Chorley Borough Council,http://statistics.data.gov.uk/id/local-authority/30UE,Central Support Services,1009,Governance,External Contractors,50008,Private Contractors,5042,Core and Reactive Service charge,08/02/2013,86672,"41,633.47",Revenue,Liberata UK,20716
Chorley Borough Council,http://statistics.data.gov.uk/id/local-authority/30UE,Capital,Capital,Governance,Consultants Fees,3025,Capital Expenditure,Capital,Management fee on capital projects,08/02/2013,86672,"5,125.05",Capital,Liberata UK,20716
Chorley Borough Council,http://statistics.data.gov.uk/id/local-authority/30UE,Central Support Services,1009,Governance,Asset Maintenance Fund,20012,Repairs Maintenance & Alts,5005,"Work In Progress, December",08/02/2013,86772,"2,400.78",Revenue,Liberata UK,20716
Chorley Borough Council,http://statistics.data.gov.uk/id/local-authority/30UE,Democratic Represent and  Mgnt,1007,Streetscene & Leisure Contracts,Furniture - Purchase,40012,"Equipment, Furniture & Materia",5023,"Cliprail white (2mx3pcs)  3 packs, Buttons 6 packs, Joiners",27/02/2013,87140,395.30,Revenue,Lion Picture Framing Supplies Ltd,21731
Chorley Borough Council,http://statistics.data.gov.uk/id/local-authority/30UE,Community Development,1097,Governance,Grants To Other Organisations,40127,Grants and Subscriptions,5031,Community Grant Funding 2013,20/02/2013,86926,250.00,Revenue,Living Waters Church,21679
Chorley Borough Council,http://statistics.data.gov.uk/id/local-authority/30UE,Corporate Management,1008,Shared Service Arrangement,Legal Fees,40171,Miscellaneous Expenses,5034,Recharge of LGA costs re Landsbanki deposit,06/02/2013,86724,"1,117.80",Revenue,Local Government Association,16243
Chorley Borough Council,http://statistics.data.gov.uk/id/local-authority/30UE,Corporate Management,1008,Shared Service Arrangement,Legal Fees,40171,Miscellaneous Expenses,5034,Recharge of LGA costs re Landsbanki deposit,06/02/2013,86724,291.14,Revenue,Local Government Association,16243
Chorley Borough Council,http://statistics.data.gov.uk/id/local-authority/30UE,Development Control,1091,Governance,Legal Fees,40171,Miscellaneous Expenses,5034,Property Searches (recovery of legal fees for 2012/13),27/02/2013,87017,453.87,Revenue,Local Government Association,16243
Chorley Borough Council,http://statistics.data.gov.uk/id/local-authority/30UE,Central Support Services,1009,HR & Org. Development,Agency Staff,13000,Direct Employee Expenses,5001,Direct Employee Expenses,01/02/2013,86437,414.78,Revenue,Matrix SCM Ltd,22128
Chorley Borough Council,http://statistics.data.gov.uk/id/local-authority/30UE,Central Support Services,1009,HR & Org. Development,Agency Staff,13000,Direct Employee Expenses,5001,Direct Employee Expenses,01/02/2013,86646,276.64,Revenue,Matrix SCM Ltd,22128
Chorley Borough Council,http://statistics.data.gov.uk/id/local-authority/30UE,Central Support Services,1009,HR & Org. Development,Agency Staff,13000,Direct Employee Expenses,5001,Direct Employee Expenses,01/02/2013,86647,222.30,Revenue,Matrix SCM Ltd,22128
Chorley Borough Council,http://statistics.data.gov.uk/id/local-authority/30UE,Unapportionable Central OHeads,1009,HR & Org. Development,Agency Staff,13000,Direct Employee Expenses,5001,Direct Employee Expenses,01/02/2013,86647,414.78,Revenue,Matrix SCM Ltd,22128
Chorley Borough Council,http://statistics.data.gov.uk/id/local-authority/30UE,Central Support Services,1009,HR & Org. Development,Agency Staff,13000,Direct Employee Expenses,5001,Direct Employee Expenses,13/02/2013,86752,824.77,Revenue,Matrix SCM Ltd,22128
Chorley Borough Council,http://statistics.data.gov.uk/id/local-authority/30UE,Unapportionable Central OHeads,1009,HR & Org. Development,Agency Staff,13000,Direct Employee Expenses,5001,Direct Employee Expenses,20/02/2013,86918,281.28,Revenue,Matrix SCM Ltd,22128
Chorley Borough Council,http://statistics.data.gov.uk/id/local-authority/30UE,Service Management & Support,1009,Streetscene & Leisure Contracts,External Contractor,40198,Miscellaneous Expenses,5034,As per price agreed for works carried in Coppull and Chorley Cemetery ,08/02/2013,86455,400.00,Revenue,Mr Stephen Scambler,16710
Chorley Borough Council,http://statistics.data.gov.uk/id/local-authority/30UE,Service Management & Support,1009,Streetscene & Leisure Contracts,External Contractor,40198,Miscellaneous Expenses,5034,"As per price agreed for works carried in Coppull and Chorley Cemetery",08/02/2013,86455,520.00,Revenue,Mr Stephen Scambler,16710
Chorley Borough Council,http://statistics.data.gov.uk/id/local-authority/30UE,Corporate Management,1008,Shared Service Arrangement,Bank Charges,40151,Miscellaneous Expenses,5034,Transaction Charges,27/02/2013,87048,546.19,Revenue,Natwest Streamline,16690
Chorley Borough Council,http://statistics.data.gov.uk/id/local-authority/30UE,Corporate Management,1008,Shared Service Arrangement,Bank Charges,40151,Miscellaneous Expenses,5034,Transaction Charges,27/02/2013,87048,11.79,Revenue,Natwest Streamline,16690
Chorley Borough Council,http://statistics.data.gov.uk/id/local-authority/30UE,Corporate Management,1008,Shared Service Arrangement,Bank Charges,40151,Miscellaneous Expenses,5034,Transaction Charges,27/02/2013,87049,528.17,Revenue,Natwest Streamline,16690
Chorley Borough Council,http://statistics.data.gov.uk/id/local-authority/30UE,Corporate Management,1008,Shared Service Arrangement,Bank Charges,40151,Miscellaneous Expenses,5034,Transaction Charges,27/02/2013,87051,416.67,Revenue,Natwest Streamline,16690
Chorley Borough Council,http://statistics.data.gov.uk/id/local-authority/30UE,Unapportionable Central OHeads,1009,Shared Service Arrangement,HR Approved Occ Health Fees,15201,Indirect Employee Expenses,5002,Amazon.Co.Uk - 1 'sad' light box - light therapy lamp ,27/02/2013,86658,60.49,Revenue,Natwest-Business Card,16267
Chorley Borough Council,http://statistics.data.gov.uk/id/local-authority/30UE,Elections,1012,Shared Service Arrangement,Publicity - Advertising,40157,Miscellaneous Expenses,5034,Facebook.Com - Ad for Police & Crime Commissioner Elections ,27/02/2013,86658,23.68,Revenue,Natwest-Business Card,16267
Chorley Borough Council,http://statistics.data.gov.uk/id/local-authority/30UE,Elections,1012,Shared Service Arrangement,Publicity - Advertising,40157,Miscellaneous Expenses,5034,Facebook.Com - Ad for Police & Crime Commissioner Elections ,27/02/2013,86658,29.81,Revenue,Natwest-Business Card,16267
Chorley Borough Council,http://statistics.data.gov.uk/id/local-authority/30UE,Elections,1012,Shared Service Arrangement,Publicity - Advertising,40157,Miscellaneous Expenses,5034,Facebook.Com - Ad for Police & Crime Commissioner Elections ,27/02/2013,86658,29.20,Revenue,Natwest-Business Card,16267
Chorley Borough Council,http://statistics.data.gov.uk/id/local-authority/30UE,Elections,1012,Shared Service Arrangement,Publicity - Advertising,40157,Miscellaneous Expenses,5034,Facebook.Com - Ad for Police & Crime Commissioner Elections ,27/02/2013,86658,30.51,Revenue,Natwest-Business Card,16267
Chorley Borough Council,http://statistics.data.gov.uk/id/local-authority/30UE,Elections,1012,Shared Service Arrangement,Publicity - Advertising,40157,Miscellaneous Expenses,5034,Facebook.Com - Ad for Police & Crime Commissioner Elections ,27/02/2013,86658,30.15,Revenue,Natwest-Business Card,16267
Chorley Borough Council,http://statistics.data.gov.uk/id/local-authority/30UE,Elections,1012,Shared Service Arrangement,Publicity - Advertising,40157,Miscellaneous Expenses,5034,Facebook.Com - Ad for Police & Crime Commissioner Elections ,27/02/2013,86658,28.38,Revenue,Natwest-Business Card,16267
Chorley Borough Council,http://statistics.data.gov.uk/id/local-authority/30UE,Elections,1012,Shared Service Arrangement,Publicity - Advertising,40157,Miscellaneous Expenses,5034,Facebook.Com - Ad for Police & Crime Commissioner Elections ,27/02/2013,86658,29.07,Revenue,Natwest-Business Card,16267
Chorley Borough Council,http://statistics.data.gov.uk/id/local-authority/30UE,Elections,1012,Shared Service Arrangement,Publicity - Advertising,40157,Miscellaneous Expenses,5034,Facebook.Com - Ad for Police & Crime Commissioner Elections ,27/02/2013,86658,28.88,Revenue,Natwest-Business Card,16267
Chorley Borough Council,http://statistics.data.gov.uk/id/local-authority/30UE,Elections,1012,Shared Service Arrangement,Publicity - Advertising,40157,Miscellaneous Expenses,5034,Facebook.Com - Ad for Police & Crime Commissioner Elections ,27/02/2013,86658,29.79,Revenue,Natwest-Business Card,16267
Chorley Borough Council,http://statistics.data.gov.uk/id/local-authority/30UE,Elections,1012,Shared Service Arrangement,Publicity - Advertising,40157,Miscellaneous Expenses,5034,Facebook.Com - Ad for Police & Crime Commissioner Elections ,27/02/2013,86658,29.06,Revenue,Natwest-Business Card,16267
Chorley Borough Council,http://statistics.data.gov.uk/id/local-authority/30UE,Corporate Management,1008,Shared Service Arrangement,Conferences - Staff,40120,Expenses,5030,www.blackburn.ac.uk - Gypsy training ,27/02/2013,86658,40.00,Revenue,Natwest-Business Card,16267
Chorley Borough Council,http://statistics.data.gov.uk/id/local-authority/30UE,Elections,1012,Shared Service Arrangement,Publicity - Advertising,40157,Miscellaneous Expenses,5034,Facebook.Com - Ad for Police & Crime Commissioner Elections ,27/02/2013,86658,11.47,Revenue,Natwest-Business Card,16267
Chorley Borough Council,http://statistics.data.gov.uk/id/local-authority/30UE,Central Support Services,1009,Shared Service Arrangement,Other Materials,40032,"Equipment, Furniture & Materia",5023,The Glowhouse - Glow Accessories for Xmas Light Switch on (Phil Collins),27/02/2013,86658,168.56,Revenue,Natwest-Business Card,16267
Chorley Borough Council,http://statistics.data.gov.uk/id/local-authority/30UE,Local Tax Collection,1010,Shared Service Arrangement,Legal Fees,40171,Miscellaneous Expenses,5034,HM Court Services - 12 Liability Orders ,27/02/2013,86658,36.00,Revenue,Natwest-Business Card,16267
Chorley Borough Council,http://statistics.data.gov.uk/id/local-authority/30UE,Local Tax Collection,1010,Shared Service Arrangement,Legal Fees,40171,Miscellaneous Expenses,5034,HM Court Services - 226 Liability Orders ,27/02/2013,86658,678.00,Revenue,Natwest-Business Card,16267
Chorley Borough Council,http://statistics.data.gov.uk/id/local-authority/30UE,Local Tax Collection,1010,Shared Service Arrangement,Legal Fees,40171,Miscellaneous Expenses,5034,HM Court Services - Summons Issued 01/11/12,27/02/2013,86658,21.00,Revenue,Natwest-Business Card,16267
Chorley Borough Council,http://statistics.data.gov.uk/id/local-authority/30UE,Homelessness,1075,Shared Service Arrangement,Bed and Breakfast Accommodation,40232,Miscellaneous Expenses,5034,Premier Inn NAME REDACTED,27/02/2013,86658,342.50,Revenue,Natwest-Business Card,16267
Chorley Borough Council,http://statistics.data.gov.uk/id/local-authority/30UE,Homelessness,1075,Shared Service Arrangement,Bed and Breakfast Accommodation,40232,Miscellaneous Expenses,5034,Premier Inn NAME REDACTED,27/02/2013,86658,314.17,Revenue,Natwest-Business Card,16267
Chorley Borough Council,http://statistics.data.gov.uk/id/local-authority/30UE,Central Support Services,1009,Shared Service Arrangement,Staff Rail Fares,30032,Public Transport,5019,Trainline.com,27/02/2013,86658,246.00,Revenue,Natwest-Business Card,16267
Chorley Borough Council,http://statistics.data.gov.uk/id/local-authority/30UE,Development Control,1091,Shared Service Arrangement,Publications,40054,"Printing, Stationery & General",5026,Amazon.Co.Uk - Publications for Planning,27/02/2013,86658,19.17,Revenue,Natwest-Business Card,16267
Chorley Borough Council,http://statistics.data.gov.uk/id/local-authority/30UE,Development Control,1091,Shared Service Arrangement,Publications,40054,"Printing, Stationery & General",5026,Amazon.Co.Uk - Publications for Planning,27/02/2013,86658,49.10,Revenue,Natwest-Business Card,16267
Chorley Borough Council,http://statistics.data.gov.uk/id/local-authority/30UE,Development Control,1091,Shared Service Arrangement,Publications,40054,"Printing, Stationery & General",5026,Amazon.Co.Uk - Publications for Planning,27/02/2013,86658,50.83,Revenue,Natwest-Business Card,16267
Chorley Borough Council,http://statistics.data.gov.uk/id/local-authority/30UE,Homelessness,1075,Shared Service Arrangement,Bed and Breakfast Accommodation,40232,Miscellaneous Expenses,5034,Premier Inn ,27/02/2013,86658,314.17,Revenue,Natwest-Business Card,16267
Chorley Borough Council,http://statistics.data.gov.uk/id/local-authority/30UE,Homelessness,1075,Shared Service Arrangement,Bed and Breakfast Accommodation,40232,Miscellaneous Expenses,5034,Premier Inn ,27/02/2013,86658,324.17,Revenue,Natwest-Business Card,16267
Chorley Borough Council,http://statistics.data.gov.uk/id/local-authority/30UE,Local Tax Collection,1010,Shared Service Arrangement,Legal Fees,40171,Miscellaneous Expenses,5034,HM Court Services - 213 liability orders,27/02/2013,87125,639.00,Revenue,Natwest-Business Card,16267
Chorley Borough Council,http://statistics.data.gov.uk/id/local-authority/30UE,Corporate Management,1008,Shared Service Arrangement,Bank Charges,40151,Miscellaneous Expenses,5034,Natwest Onecard - Card Fee 2013,27/02/2013,87125,45.00,Revenue,Natwest-Business Card,16267
Chorley Borough Council,http://statistics.data.gov.uk/id/local-authority/30UE,Corporate Management,1008,Shared Service Arrangement,Bank Charges,40151,Miscellaneous Expenses,5034,Natwest Onecard ,27/02/2013,87125,45.00,Revenue,Natwest-Business Card,16267
Chorley Borough Council,http://statistics.data.gov.uk/id/local-authority/30UE,Corporate Management,1008,Shared Service Arrangement,Computer Equipment - Security,40106,Communication and Computing,5028,Surveymonkey.com - SurveyMonkey Professional Plan Upgrade,27/02/2013,87125,173.04,Revenue,Natwest-Business Card,16267
Chorley Borough Council,http://statistics.data.gov.uk/id/local-authority/30UE,Unapportionable Central OHeads,1009,Shared Service Arrangement,Other Fees,40212,Miscellaneous Expenses,5034,Amazon.Co.Uk - 50 Father Christmas Suits,27/02/2013,87125,180.25,Revenue,Natwest-Business Card,16267
Chorley Borough Council,http://statistics.data.gov.uk/id/local-authority/30UE,Central Support Services,1009,Shared Service Arrangement,Computer Software-Purchase,40100,Communication and Computing,5028,Jam-software.de - Treesize Prof Single User Licence Maint to 14/12/13,27/02/2013,87125,35.87,Revenue,Natwest-Business Card,16267
Chorley Borough Council,http://statistics.data.gov.uk/id/local-authority/30UE,Unapportionable Central OHeads,1009,Shared Service Arrangement,Computer Software-Maintenance,40107,Communication and Computing,5028,Thawte - SSL Web Service Certificate - 2 years,27/02/2013,87125,791.24,Revenue,Natwest-Business Card,16267
Chorley Borough Council,http://statistics.data.gov.uk/id/local-authority/30UE,Central Support Services,1009,Shared Service Arrangement,Mayoral Hospitality,40123,Expenses,5030,Catering Plus - Purchase of wine glasses by Civic Services,27/02/2013,87125,177.40,Revenue,Natwest-Business Card,16267
Chorley Borough Council,http://statistics.data.gov.uk/id/local-authority/30UE,Local Tax Collection,1010,Shared Service Arrangement,Computer Software-Maintenance,40107,Communication and Computing,5028,Thawte - SSL Web Service Certificate - 2 years,27/02/2013,87125,283.57,Revenue,Natwest-Business Card,16267
Chorley Borough Council,http://statistics.data.gov.uk/id/local-authority/30UE,Unapportionable Central OHeads,1009,Shared Service Arrangement,Computer Software-Maintenance,40107,Communication and Computing,5028,Thawte - SSL Web Service Certificate - 2 years,27/02/2013,87125,220.42,Revenue,Natwest-Business Card,16267
Chorley Borough Council,http://statistics.data.gov.uk/id/local-authority/30UE,Elections,1012,Shared Service Arrangement,Publicity - Advertising,40157,Miscellaneous Expenses,5034,Natwest Onecard - Card Fee 2013,27/02/2013,87125,45.00,Revenue,Natwest-Business Card,16267
Chorley Borough Council,http://statistics.data.gov.uk/id/local-authority/30UE,Local Tax Collection,1010,Shared Service Arrangement,Legal Fees,40171,Miscellaneous Expenses,5034,HM Court Services - 25 liability orders,27/02/2013,87125,75.00,Revenue,Natwest-Business Card,16267
Chorley Borough Council,http://statistics.data.gov.uk/id/local-authority/30UE,Corporate Management,1008,Shared Service Arrangement,Bank Charges,40151,Miscellaneous Expenses,5034,Natwest Onecard - Card Fee 2013,27/02/2013,87125,45.00,Revenue,Natwest-Business Card,16267
Chorley Borough Council,http://statistics.data.gov.uk/id/local-authority/30UE,Local Tax Collection,1010,Shared Service Arrangement,Legal Fees,40171,Miscellaneous Expenses,5034,HM Court Services - 20 liability orders,27/02/2013,87125,60.00,Revenue,Natwest-Business Card,16267
Chorley Borough Council,http://statistics.data.gov.uk/id/local-authority/30UE,Corporate Management,1008,Shared Service Arrangement,Bank Charges,40151,Miscellaneous Expenses,5034,Natwest Onecard - Card Fee 2013,27/02/2013,87125,45.00,Revenue,Natwest-Business Card,16267
Chorley Borough Council,http://statistics.data.gov.uk/id/local-authority/30UE,Homelessness,1075,Shared Service Arrangement,Bed and Breakfast Accommodation,40232,Miscellaneous Expenses,5034,Premier Inn - NAME REDACTED,27/02/2013,87125,307.50,Revenue,Natwest-Business Card,16267
Chorley Borough Council,http://statistics.data.gov.uk/id/local-authority/30UE,Unapportionable Central OHeads,1009,Shared Service Arrangement,Computer Equipment-Purchase,40098,Communication and Computing,5028,Systo UK - Artic Cooling Z-2,27/02/2013,87125,54.82,Revenue,Natwest-Business Card,16267
Chorley Borough Council,http://statistics.data.gov.uk/id/local-authority/30UE,Homelessness,1075,Shared Service Arrangement,Bed and Breakfast Accommodation,40232,Miscellaneous Expenses,5034,Premier Inn - NAME REDACTED,27/02/2013,87125,300.83,Revenue,Natwest-Business Card,16267
Chorley Borough Council,http://statistics.data.gov.uk/id/local-authority/30UE,Central Support Services,1009,Shared Service Arrangement,Staff Rail Fares,30032,Public Transport,5019,Premier Inn - NAME REDACTED,27/02/2013,87125,262.40,Revenue,Natwest-Business Card,16267
Chorley Borough Council,http://statistics.data.gov.uk/id/local-authority/30UE,Central Support Services,1009,Shared Service Arrangement,Staff Rail Fares,30032,Public Transport,5019,Premier Inn - NAME REDACTED,27/02/2013,87125,55.70,Revenue,Natwest-Business Card,16267
Chorley Borough Council,http://statistics.data.gov.uk/id/local-authority/30UE,Homelessness,1075,Shared Service Arrangement,Bed and Breakfast Accommodation,40232,Miscellaneous Expenses,5034,Premier Inn - NAME REDACTED,27/02/2013,87125,305.00,Revenue,Natwest-Business Card,16267
Chorley Borough Council,http://statistics.data.gov.uk/id/local-authority/30UE,Central Support Services,1009,Shared Service Arrangement,IT Software - Annual Licences,40101,Communication and Computing,5028,Premier Inn - NAME REDACTED,27/02/2013,87125,76.48,Revenue,Natwest-Business Card,16267
Chorley Borough Council,http://statistics.data.gov.uk/id/local-authority/30UE,Homelessness,1075,Shared Service Arrangement,Bed and Breakfast Accommodation,40232,Miscellaneous Expenses,5034,Premier Inn - NAME REDACTED,27/02/2013,87125,271.67,Revenue,Natwest-Business Card,16267
Chorley Borough Council,http://statistics.data.gov.uk/id/local-authority/30UE,Homelessness,1075,Shared Service Arrangement,Bed and Breakfast Accommodation,40232,Miscellaneous Expenses,5034,Premier Inn - NAME REDACTED,27/02/2013,87125,343.33,Revenue,Natwest-Business Card,16267
Chorley Borough Council,http://statistics.data.gov.uk/id/local-authority/30UE,Corporate Management,1008,Shared Service Arrangement,Bank Charges,40151,Miscellaneous Expenses,5034,Natwest Onecard - Card Fee 2013,27/02/2013,87125,45.00,Revenue,Natwest-Business Card,16267
Chorley Borough Council,http://statistics.data.gov.uk/id/local-authority/30UE,Corporate Management,1008,Shared Service Arrangement,Bank Charges,40151,Miscellaneous Expenses,5034,Natwest Onecard - Card Fee 2014,27/02/2013,87125,45.00,Revenue,Natwest-Business Card,16267
Chorley Borough Council,http://statistics.data.gov.uk/id/local-authority/30UE,Service Management & Support,1009,Streetscene & Leisure Contracts,Refuse Collection,20037,Cleaning and Domestic Supplies,5012,Exchange of Street cleaning waste skip ,27/02/2013,86848,330.00,Revenue,Neales Waste Management,17583
Chorley Borough Council,http://statistics.data.gov.uk/id/local-authority/30UE,Service Management & Support,1009,Streetscene & Leisure Contracts,Refuse Collection,20037,Cleaning and Domestic Supplies,5012,Exchange of Street cleaning waste skip ,27/02/2013,86848,950.14,Revenue,Neales Waste Management,17583
Chorley Borough Council,http://statistics.data.gov.uk/id/local-authority/30UE,Service Management & Support,1009,Streetscene & Leisure Contracts,Refuse Collection,20037,Cleaning and Domestic Supplies,5012,Price per tonne of green waste removed from Chorley Council,27/02/2013,86849,395.35,Revenue,Neales Waste Management,17583
Chorley Borough Council,http://statistics.data.gov.uk/id/local-authority/30UE,Central Support Services,1009,Chief Executives Office,Postages,40082,Communication and Computing,5028,Credit for Franking  Machine N1384829 - Town Hall Offices ,20/02/2013,86984,"1,500.00",Revenue,Neopost Ltd RCB Credifon A/C,20009
Chorley Borough Council,http://statistics.data.gov.uk/id/local-authority/30UE,Unapportionable Central OHeads,1009,Chief Executives Office,Postages,40082,Communication and Computing,5028,Credit for franking machine N1159615,20/02/2013,86986,"1,000.00",Revenue,Neopost Ltd RCB Credifon A/C,20009
Chorley Borough Council,http://statistics.data.gov.uk/id/local-authority/30UE,Central Support Services,1009,HR & Org. Development,First Aid Supplies,40031,"Equipment, Furniture & Materia",5023,1 Day HSE Emergency First aid at Work course.,13/02/2013,86863,685.00,Revenue,North West Ambulance Srvc Nhs Trust,17460
Chorley Borough Council,http://statistics.data.gov.uk/id/local-authority/30UE,Service Management & Support,1009,Chief Executives Office,Electricity,20013,Energy Costs,5006,Gillett Playing Fields Sports Pavillion,08/02/2013,86415,101.23,Revenue,Npower Commercial Gas,16814
Chorley Borough Council,http://statistics.data.gov.uk/id/local-authority/30UE,Democratic Represent and  Mgnt,1007,Chief Executives Office,Electricity,20013,Energy Costs,5006,King George V Playing Fields,08/02/2013,86415,5.43,Revenue,Npower Commercial Gas,16814
Chorley Borough Council,http://statistics.data.gov.uk/id/local-authority/30UE,Corporate Management,1008,Chief Executives Office,Electricity,20013,Energy Costs,5006,Cemetery Chapel,08/02/2013,86415,4.72,Revenue,Npower Commercial Gas,16814
Chorley Borough Council,http://statistics.data.gov.uk/id/local-authority/30UE,Democratic Represent and  Mgnt,1007,Chief Executives Office,Electricity,20013,Energy Costs,5006,King Geoerge V Playing Fields- Chaging rooms,08/02/2013,86415,66.33,Revenue,Npower Commercial Gas,16814
Chorley Borough Council,http://statistics.data.gov.uk/id/local-authority/30UE,Recreation & Sport,1037,Chief Executives Office,Electricity,20013,Energy Costs,5006,King Geoerge V Playing Fields- Chaging rooms,08/02/2013,86415,-25.64,Revenue,Npower Commercial Gas,16814
Chorley Borough Council,http://statistics.data.gov.uk/id/local-authority/30UE,Unapportionable Central OHeads,1009,Chief Executives Office,Electricity,20013,Energy Costs,5006,Civic Offices,08/02/2013,86415,"2,976.96",Revenue,Npower Commercial Gas,16814
Chorley Borough Council,http://statistics.data.gov.uk/id/local-authority/30UE,Central Support Services,1009,Chief Executives Office,Electricity,20013,Energy Costs,5006,Bengal Street Depot,08/02/2013,86415,"1,370.19",Revenue,Npower Commercial Gas,16814
Chorley Borough Council,http://statistics.data.gov.uk/id/local-authority/30UE,Unapportionable Central OHeads,1009,Chief Executives Office,Electricity,20013,Energy Costs,5006,Town Hall,08/02/2013,86415,"2,439.53",Revenue,Npower Commercial Gas,16814
Chorley Borough Council,http://statistics.data.gov.uk/id/local-authority/30UE,Homelessness,1075,Chief Executives Office,Electricity,20013,Energy Costs,5006,Cotswold House Communal Rooms,08/02/2013,86415,814.49,Revenue,Npower Commercial Gas,16814
Chorley Borough Council,http://statistics.data.gov.uk/id/local-authority/30UE,Homelessness,1075,Chief Executives Office,Electricity,20013,Energy Costs,5006,Cotswold House Communal Rooms,08/02/2013,86415,"1,029.85",Revenue,Npower Commercial Gas,16814
Chorley Borough Council,http://statistics.data.gov.uk/id/local-authority/30UE,Homelessness,1075,Chief Executives Office,Electricity,20013,Energy Costs,5006,Cotswold House Communal Rooms,08/02/2013,86415,"1,417.15",Revenue,Npower Commercial Gas,16814
Chorley Borough Council,http://statistics.data.gov.uk/id/local-authority/30UE,Homelessness,1075,Chief Executives Office,Electricity,20013,Energy Costs,5006,Cotswold House Communal Rooms,08/02/2013,86415,"1,426.16",Revenue,Npower Commercial Gas,16814
Chorley Borough Council,http://statistics.data.gov.uk/id/local-authority/30UE,Homelessness,1075,Chief Executives Office,Electricity,20013,Energy Costs,5006,Cotswold House Communal Rooms,08/02/2013,86415,950.42,Revenue,Npower Commercial Gas,16814
Chorley Borough Council,http://statistics.data.gov.uk/id/local-authority/30UE,Homelessness,1075,Chief Executives Office,Electricity,20013,Energy Costs,5006,Cotswold House Communal Rooms,08/02/2013,86415,-857.93,Revenue,Npower Commercial Gas,16814
Chorley Borough Council,http://statistics.data.gov.uk/id/local-authority/30UE,Homelessness,1075,Chief Executives Office,Electricity,20013,Energy Costs,5006,Cotswold House Communal Rooms,08/02/2013,86415,-571.68,Revenue,Npower Commercial Gas,16814
Chorley Borough Council,http://statistics.data.gov.uk/id/local-authority/30UE,Homelessness,1075,Chief Executives Office,Electricity,20013,Energy Costs,5006,Cotswold House Communal Rooms,08/02/2013,86415,-489.95,Revenue,Npower Commercial Gas,16814
Chorley Borough Council,http://statistics.data.gov.uk/id/local-authority/30UE,Homelessness,1075,Chief Executives Office,Electricity,20013,Energy Costs,5006,Cotswold House Communal Rooms,08/02/2013,86415,-623.30,Revenue,Npower Commercial Gas,16814
Chorley Borough Council,http://statistics.data.gov.uk/id/local-authority/30UE,Parking Services,1066,Chief Executives Office,Electricity,20013,Energy Costs,5006,Un-metered Car Park Lighting,20/02/2013,86915,893.60,Revenue,Npower Commercial Gas,16814
Chorley Borough Council,http://statistics.data.gov.uk/id/local-authority/30UE,Parking Services,1066,Chief Executives Office,Electricity,20013,Energy Costs,5006,Un-metered - Pay and Display Machines,20/02/2013,86915,97.03,Revenue,Npower Commercial Gas,16814
Chorley Borough Council,http://statistics.data.gov.uk/id/local-authority/30UE,Corporate Management,1008,Chief Executives Office,Electricity,20013,Energy Costs,5006,Un-metered CCTV Cameras,20/02/2013,86915,239.17,Revenue,Npower Commercial Gas,16814
Chorley Borough Council,http://statistics.data.gov.uk/id/local-authority/30UE,Open Spaces,1038,Chief Executives Office,Electricity,20013,Energy Costs,5006,Harpers Lane Recreation Grounds,25/02/2013,86916,129.85,Revenue,Npower Commercial Gas,16814
Chorley Borough Council,http://statistics.data.gov.uk/id/local-authority/30UE,Economic Development,1096,Chief Executives Office,Electricity,20013,Energy Costs,5006,Market Office and Outside Market,25/02/2013,86916,"3,185.36",Revenue,Npower Commercial Gas,16814
Chorley Borough Council,http://statistics.data.gov.uk/id/local-authority/30UE,Democratic Represent and  Mgnt,1007,Chief Executives Office,Electricity,20013,Energy Costs,5006,Astley Hall Farm House,25/02/2013,86916,143.13,Revenue,Npower Commercial Gas,16814
Chorley Borough Council,http://statistics.data.gov.uk/id/local-authority/30UE,Culture & Heritage,1036,Chief Executives Office,Electricity,20013,Energy Costs,5006,CCTV MArket St,25/02/2013,86916,376.53,Revenue,Npower Commercial Gas,16814
Chorley Borough Council,http://statistics.data.gov.uk/id/local-authority/30UE,Open Spaces,1038,Chief Executives Office,Electricity,20013,Energy Costs,5006,Coronation Recreation Grounds,25/02/2013,86916,26.74,Revenue,Npower Commercial Gas,16814
Chorley Borough Council,http://statistics.data.gov.uk/id/local-authority/30UE,Democratic Represent and  Mgnt,1007,Chief Executives Office,Electricity,20013,Energy Costs,5006,Ackhurst Lodge - Two Rate,25/02/2013,86916,4.72,Revenue,Npower Commercial Gas,16814
Chorley Borough Council,http://statistics.data.gov.uk/id/local-authority/30UE,Culture & Heritage,1036,Chief Executives Office,Electricity,20013,Energy Costs,5006,Astley Hall Cottage,25/02/2013,86916,178.17,Revenue,Npower Commercial Gas,16814
Chorley Borough Council,http://statistics.data.gov.uk/id/local-authority/30UE,Cemetery Cremation & Mortuary,1041,Chief Executives Office,Electricity,20013,Energy Costs,5006,Cemetery Chapel,25/02/2013,86916,1.67,Revenue,Npower Commercial Gas,16814
Chorley Borough Council,http://statistics.data.gov.uk/id/local-authority/30UE,Corporate Management,1008,Chief Executives Office,Electricity,20013,Energy Costs,5006,Cemeteries Office. Grave Diggers Mess Rm,25/02/2013,86916,275.57,Revenue,Npower Commercial Gas,16814
Chorley Borough Council,http://statistics.data.gov.uk/id/local-authority/30UE,Economic Development,1096,Chief Executives Office,Electricity,20013,Energy Costs,5006,"Market Compactor, Refuse Disposal Unit",25/02/2013,86916,386.45,Revenue,Npower Commercial Gas,16814
Chorley Borough Council,http://statistics.data.gov.uk/id/local-authority/30UE,Democratic Represent and  Mgnt,1007,Chief Executives Office,Electricity,20013,Energy Costs,5006,King George V Playing Fields-Changing Rooms,25/02/2013,86916,73.83,Revenue,Npower Commercial Gas,16814
Chorley Borough Council,http://statistics.data.gov.uk/id/local-authority/30UE,Unapportionable Central OHeads,1009,Chief Executives Office,Electricity,20013,Energy Costs,5006,Civic Offices,25/02/2013,86916,"3,144.13",Revenue,Npower Commercial Gas,16814
Chorley Borough Council,http://statistics.data.gov.uk/id/local-authority/30UE,Central Support Services,1009,Chief Executives Office,Electricity,20013,Energy Costs,5006,Bengal Street Depot,25/02/2013,86916,"1,154.28",Revenue,Npower Commercial Gas,16814
Chorley Borough Council,http://statistics.data.gov.uk/id/local-authority/30UE,Central Support Services,1009,Chief Executives Office,Electricity,20013,Energy Costs,5006,Town Hall,25/02/2013,86916,"2,207.94",Revenue,Npower Commercial Gas,16814
Chorley Borough Council,http://statistics.data.gov.uk/id/local-authority/30UE,Economic Development,1096,Chief Executives Office,Electricity,20013,Energy Costs,5006,Portacabin Stall A27/78,25/02/2013,86916,4.72,Revenue,Npower Commercial Gas,16814
Chorley Borough Council,http://statistics.data.gov.uk/id/local-authority/30UE,Homelessness,1075,Chief Executives Office,Electricity,20013,Energy Costs,5006,Cotswold House Two Storey Wing,25/02/2013,86916,566.29,Revenue,Npower Commercial Gas,16814
Chorley Borough Council,http://statistics.data.gov.uk/id/local-authority/30UE,Homelessness,1075,Chief Executives Office,Electricity,20013,Energy Costs,5006,Cotswold House Two Storey Wing,25/02/2013,86916,537.25,Revenue,Npower Commercial Gas,16814
Chorley Borough Council,http://statistics.data.gov.uk/id/local-authority/30UE,Homelessness,1075,Chief Executives Office,Electricity,20013,Energy Costs,5006,Cotswold House Two Storey Wing,25/02/2013,86916,-87.78,Revenue,Npower Commercial Gas,16814
Chorley Borough Council,http://statistics.data.gov.uk/id/local-authority/30UE,Homelessness,1075,Chief Executives Office,Electricity,20013,Energy Costs,5006,Cotswold House Two Storey Wing,25/02/2013,86916,-221.89,Revenue,Npower Commercial Gas,16814
Chorley Borough Council,http://statistics.data.gov.uk/id/local-authority/30UE,Homelessness,1075,Chief Executives Office,Electricity,20013,Energy Costs,5006,Cotswodl House SIngle Storey Wing,25/02/2013,86916,188.61,Revenue,Npower Commercial Gas,16814
Chorley Borough Council,http://statistics.data.gov.uk/id/local-authority/30UE,Unapportionable Central OHeads,1009,HR & Org. Development,Corp Training Organisational Development,17006,Indirect Employee Expenses,5002,Fees for Advisory Service Resilience Training held 28 January 2013 (Inv 7914),25/02/2013,87019,750.00,Revenue,Nwlaeo,17571
Chorley Borough Council,http://statistics.data.gov.uk/id/local-authority/30UE,Central Support Services,1009,HR & Org. Development,Corp Training Organisational Development,17006,Indirect Employee Expenses,5002,Fees for Advisory Service Feedback from Coaching Exercise held on 17 January 2013 (Invoice7915),25/02/2013,87020,750.00,Revenue,Nwlaeo,17571
Chorley Borough Council,http://statistics.data.gov.uk/id/local-authority/30UE,Central Support Services,1009,HR & Org. Development,Corp Training Organisational Development,17006,Indirect Employee Expenses,5002,Fees for Advisory Service Feedback from Coaching Exercise held on 21 & 29 January 2013 (Inv 7916),25/02/2013,87021,800.00,Revenue,Nwlaeo,17571
Chorley Borough Council,http://statistics.data.gov.uk/id/local-authority/30UE,Unapportionable Central OHeads,1009,Chief Executives Office,Mobile Phones,40086,Communication and Computing,5028,Orange phone bill for January 2013 - bill dated 3 February 2013.  Invoice number 00906760000,20/02/2013,86934,"1,223.73",Revenue,Orange Pcs Ltd - Airtime,16486
Chorley Borough Council,http://statistics.data.gov.uk/id/local-authority/30UE,Central Support Services,1009,Chief Executives Office,Mobile Phones,40086,Communication and Computing,5028,Orange phone bill for January 2013 - bill dated 3 February 2013.  Invoice number 00906760000,20/02/2013,86934,51.90,Revenue,Orange Pcs Ltd - Airtime,16486
Chorley Borough Council,http://statistics.data.gov.uk/id/local-authority/30UE,Open Spaces,1038,Streetscene & Leisure Contracts,Playground Equipment,40008,"Equipment, Furniture & Materia",5023,"order of 1 Springy Tugboat (2 seater) to be deliverd to Bengal Street Depot Chorley, PR71SA",20/02/2013,86913,"1,870.00",Revenue,Park Leisure Ltd,22226
Chorley Borough Council,http://statistics.data.gov.uk/id/local-authority/30UE,Service Management & Support,1009,Streetscene & Leisure Contracts,External Contractor,40198,Miscellaneous Expenses,5034,Abbey Village Play Area Remove and dispose of existing chicane at entrance to site,25/02/2013,87022,"1,095.00",Revenue,Park Leisure Ltd,22226
Chorley Borough Council,http://statistics.data.gov.uk/id/local-authority/30UE,Recreation & Sport,1037,Governance,Performing Rights Society Fees,40148,Grants and Subscriptions,5031,PRS fees from 6/10/12 - 5/1/13,13/02/2013,86809,495.16,Revenue,Performing Right Society Ltd,19909
Chorley Borough Council,http://statistics.data.gov.uk/id/local-authority/30UE,Corporate Management,1008,Health Environment & Neighbourhoods,External Contractor,40198,Miscellaneous Expenses,5034,Provision of Pest control services for 2012/13,01/02/2013,86653,311.75,Revenue,Peter L Johnson,16727
Chorley Borough Council,http://statistics.data.gov.uk/id/local-authority/30UE,Community Safety Crime Reduct,1043,Health Environment & Neighbourhoods,External Contractor,40198,Miscellaneous Expenses,5034,Provision of Pest control services for 2012/13,08/02/2013,86795,311.75,Revenue,Peter L Johnson,16727
Chorley Borough Council,http://statistics.data.gov.uk/id/local-authority/30UE,Corporate Management,1008,Health Environment & Neighbourhoods,External Contractor,40198,Miscellaneous Expenses,5034,Provision of Pest control services for 2012/13,13/02/2013,86914,311.75,Revenue,Peter L Johnson,16727
Chorley Borough Council,http://statistics.data.gov.uk/id/local-authority/30UE,Community Safety Crime Reduct,1043,Health Environment & Neighbourhoods,External Contractor,40198,Miscellaneous Expenses,5034,Provision of Pest control services for 2012/13,27/02/2013,87089,311.75,Revenue,Peter L Johnson,16727
Chorley Borough Council,http://statistics.data.gov.uk/id/local-authority/30UE,Corporate Management,1008,Health Environment & Neighbourhoods,External Contractor,40198,Miscellaneous Expenses,5034,Provision of Pest control services for 2012/13,27/02/2013,87116,311.75,Revenue,Peter L Johnson,16727
Chorley Borough Council,http://statistics.data.gov.uk/id/local-authority/30UE,Service Management & Support,1009,Streetscene & Leisure Contracts,Diesel/Derv,30007,Direct Transport Costs,5016,Supply 5000 litres of red diesle to be delivered to Bengal St Depot,06/02/2013,86712,"3,052.22",Revenue,Pilkington Oils,18075
Chorley Borough Council,http://statistics.data.gov.uk/id/local-authority/30UE,Corporate Management,1008,Health Environment & Neighbourhoods,Other Contributions,40145,Grants and Subscriptions,5031,2012/13 Contribution to 27no. PCSO`s deployed in Chorley Borough area. ,01/02/2013,86322,"74,250.00",Revenue,Police & Crime Commissioner,17548
Chorley Borough Council,http://statistics.data.gov.uk/id/local-authority/30UE,Corporate Management,1008,Health Environment & Neighbourhoods,Signs:Provision & Maintenance,20065,Grounds Maintenance Costs,5013,Triangle style Each face to view size 40cm * 56cm LAMINATED digital print Supplied complete with all fixings,01/02/2013,86540,669.20,Revenue,Poppy Signs Ltd,21898
Chorley Borough Council,http://statistics.data.gov.uk/id/local-authority/30UE,Capital,Capital,Governance,Equipment,3014,Capital Expenditure,Capital,"as per quote ref: 1413/a - batch of 6,   3` x 3` canvass prints",13/02/2013,86814,553.10,Capital,Poppy Signs Ltd,21898
Chorley Borough Council,http://statistics.data.gov.uk/id/local-authority/30UE,Unapportionable Central OHeads,1009,Chief Executives Office,Photocopier Consumables,40049,"Printing, Stationery & General",5026,"Evolution Everyday A4 80gsm, Box 2500",06/02/2013,86700,461.00,Revenue,Premier Paper Group,54451
Chorley Borough Council,http://statistics.data.gov.uk/id/local-authority/30UE,Central Support Services,1009,Chief Executives Office,Photocopier Consumables,40049,"Printing, Stationery & General",5026,"Evolution Everyday A4 80gsm, Box 2500",25/02/2013,87015,461.00,Revenue,Premier Paper Group,54451
Chorley Borough Council,http://statistics.data.gov.uk/id/local-authority/30UE,Central Support Services,1009,Shared Service Arrangement,Refreshments,40036,Catering,5024,Prima Vera Water - 18 Litres,08/02/2013,86807,253.15,Revenue,Pressure Coolers Ltd T/A Maestro International Ltd,19767
Chorley Borough Council,http://statistics.data.gov.uk/id/local-authority/30UE,Housing Advice,1071,Streetscene & Leisure Contracts,External Contractor,40198,Miscellaneous Expenses,5034,"`Warm Homes check` - materials for draught proofing, maintenance etc Warm Homes Healthy People scheme",01/02/2013,86663,900.00,Revenue,Preston Care and Repair,50018
Chorley Borough Council,http://statistics.data.gov.uk/id/local-authority/30UE,Corporate Management,1008,Streetscene & Leisure Contracts,External Contractor,40198,Miscellaneous Expenses,5034,"Warm Homes Checks @ 50 per visit, for Warm Homes Healthy People Project.  ",13/02/2013,86828,650.00,Revenue,Preston Care and Repair,50018
Chorley Borough Council,http://statistics.data.gov.uk/id/local-authority/30UE,Housing Advice,1071,Streetscene & Leisure Contracts,External Contractor,40198,Miscellaneous Expenses,5034,Boiler service/maintenance checks @ 100 per service - for the Warm Homes Healthy People project,20/02/2013,86985,900.00,Revenue,Preston Care and Repair,50018
Chorley Borough Council,http://statistics.data.gov.uk/id/local-authority/30UE,Private Sector HSG Renewal,1073,Housing,Miscellaneous Expenses,40200,Miscellaneous Expenses,5034,Energy surveys carried out on behalf of the Council,27/02/2013,87145,"1,200.00",Revenue,Preston Care and Repair,50018
Chorley Borough Council,http://statistics.data.gov.uk/id/local-authority/30UE,Capital,Capital,Governance,Equipment,3014,Capital Expenditure,Capital,Replacement carpet for bar area. ,06/02/2013,86688,"2,344.17",Capital,Preston Road Carpets Ltd,56397
Chorley Borough Council,http://statistics.data.gov.uk/id/local-authority/30UE,Elections,1012,Governance,Postages,40082,Communication and Computing,5028,2nd mailing - 1st reminder of postal vote refresh 2013,08/02/2013,86707,826.24,Revenue,Print Image Facilities LLP,57870
Chorley Borough Council,http://statistics.data.gov.uk/id/local-authority/30UE,Elections,1012,Governance,Printing,40043,"Printing, Stationery & General",5026,Euxton North East Parish By Election - Ballot Papers,13/02/2013,86844,588.00,Revenue,Print Image Network,21171
Chorley Borough Council,http://statistics.data.gov.uk/id/local-authority/30UE,Elections,1012,Governance,Printing,40043,"Printing, Stationery & General",5026,Euxton North East Parish by election - 17 January 2013 Postal Vote Packs,13/02/2013,86845,"1,483.00",Revenue,Print Image Network,21171
Chorley Borough Council,http://statistics.data.gov.uk/id/local-authority/30UE,Interest Payable on Debt,1020,Shared Service Arrangement,Interest Payable,9009,Interest Payments,5067,Repayments,27/02/2013,87056,"23,612.48",Revenue,Public Works Loans Board,21480
Chorley Borough Council,http://statistics.data.gov.uk/id/local-authority/30UE,Interest Payable on Debt,1020,Shared Service Arrangement,Interest Payable,9009,Interest Payments,5067,Repayments,27/02/2013,87057,"1,945.00",Revenue,Public Works Loans Board,21480
Chorley Borough Council,http://statistics.data.gov.uk/id/local-authority/30UE,Recreation & Sport,1037,Health Environment & Neighbourhoods,Sports Development Initiatives,40186,Miscellaneous Expenses,5034,Hire of 2 coaches for Chorley Council Blackpool Tower Ballroom trip on Wednesday 30th January.,01/02/2013,86666,645.00,Revenue,R S Tyrer & Sons,16255
Chorley Borough Council,http://statistics.data.gov.uk/id/local-authority/30UE,Homelessness,1075,Housing,External Contractor,40198,Miscellaneous Expenses,5034,Conceirge service at Cotswold Supported Housing,08/02/2013,86675,"4,569.64",Revenue,Red Rose Security & Support Services,21918
Chorley Borough Council,http://statistics.data.gov.uk/id/local-authority/30UE,Service Management & Support,1009,Streetscene & Leisure Contracts,Supplies-Grounds Maintenance,40025,"Equipment, Furniture & Materia",5023,Pre Line sports pitch line marker paint,06/02/2013,83355,621.50,Revenue,Rigby Taylor Ltd,16299
Chorley Borough Council,http://statistics.data.gov.uk/id/local-authority/30UE,Service Management & Support,1009,Streetscene & Leisure Contracts,Supplies-Grounds Maintenance,40025,"Equipment, Furniture & Materia",5023,Supply marking solution for pitch marking,20/02/2013,86911,400.00,Revenue,Rigby Taylor Ltd,16299
Chorley Borough Council,http://statistics.data.gov.uk/id/local-authority/30UE,Service Management & Support,1009,Streetscene & Leisure Contracts,Supplies-Grounds Maintenance,40025,"Equipment, Furniture & Materia",5023,Supply pitch linning solution to be collected,27/02/2013,87112,400.00,Revenue,Rigby Taylor Ltd,16299
Chorley Borough Council,http://statistics.data.gov.uk/id/local-authority/30UE,Economic Development,1096,Economic Development,Grants To Other Organisations,40127,Grants and Subscriptions,5031,Starting in Business Grant - Capital Expenditure,25/02/2013,87039,"1,000.00",Revenue,NAME REDACTED,58402
Chorley Borough Council,http://statistics.data.gov.uk/id/local-authority/30UE,Elections,1012,Governance,Postages,40082,Communication and Computing,5028,Business reply RRHA-KZCB-CAXA April 2012 - March 2013,08/02/2013,86767,"1,639.18",Revenue,Royal Mail Group Plc,17522
Chorley Borough Council,http://statistics.data.gov.uk/id/local-authority/30UE,Economic Development,1096,Economic Development,Grants To Other Organisations,40127,Grants and Subscriptions,5031,Starting in business Grant - Capital Expenditure,06/02/2013,86649,282.44,Revenue,Samantha West t/as Pet Wurld,57442
Chorley Borough Council,http://statistics.data.gov.uk/id/local-authority/30UE,Economic Development,1096,Economic Development,Grants To Other Organisations,40127,Grants and Subscriptions,5031,Starting in Business Grant - Capital Expenditure,20/02/2013,86927,829.59,Revenue,Sandra Mulligan t/a Knitty Nora,58153
Chorley Borough Council,http://statistics.data.gov.uk/id/local-authority/30UE,Economic Development,1096,Economic Development,Grants To Other Organisations,40127,Grants and Subscriptions,5031,Chorley Shop Front Improvement,27/02/2013,87119,318.75,Revenue,NAME REDACTED,58145
Chorley Borough Council,http://statistics.data.gov.uk/id/local-authority/30UE,Economic Development,1096,Economic Development,Grants To Other Organisations,40127,Grants and Subscriptions,5031,Chorley Shop Floor Refurn,27/02/2013,87119,"3,000.00",Revenue,NAME REDACTED,58145
Chorley Borough Council,http://statistics.data.gov.uk/id/local-authority/30UE,Business Support,1095,Governance,Electricity,20013,Energy Costs,5006,Electric at Gillibrand Street,27/02/2013,87083,365.40,Revenue,Scottish Power,19010
Chorley Borough Council,http://statistics.data.gov.uk/id/local-authority/30UE,Service Management & Support,1009,Streetscene & Leisure Contracts,Transport Operating Leases,30029,Contrct Hire & Operating Lease,5018,Collection & damage costs for PN04 VWK on termination of lease,20/02/2013,86909,575.00,Revenue,SG EQUIPMENT FINANCE LTD,18156
Chorley Borough Council,http://statistics.data.gov.uk/id/local-authority/30UE,Unapportionable Central OHeads,1009,"Customer, ICT & Transactional",Consultants` Fees,40077,Services,5027,ICT consultancy work - Jan (19 days),13/02/2013,86782,"1,914.82",Revenue,NAME REDACTED,57624
Chorley Borough Council,http://statistics.data.gov.uk/id/local-authority/30UE,Capital,Capital,Governance,Equipment,3014,Capital Expenditure,Capital,to supply and fit: 3 vertical blinds at 89mm slat size in Tribune Caramel for new bar,08/02/2013,86693,355.00,Capital,Sovereign Blinds,18827
Chorley Borough Council,http://statistics.data.gov.uk/id/local-authority/30UE,Planning Policy,1092,Planning,Professional Fees,40063,Services,5027,"New editor built into existing web structure, with additional tools for the Central Lancashire LDF",08/02/2013,86536,350.00,Revenue,Spiderswebsites Ltd,54341
Chorley Borough Council,http://statistics.data.gov.uk/id/local-authority/30UE,Recreation & Sport,1037,Health Environment & Neighbourhoods,Lifelong Learning Activities,40194,Miscellaneous Expenses,5034,To provide EHA Level One qualification course for streetgames programme for staff,20/02/2013,86978,"1,150.00",Revenue,Sport Structures,58294
Chorley Borough Council,http://statistics.data.gov.uk/id/local-authority/30UE,Community Development,1097,Health Environment & Neighbourhoods,Miscellaneous Expenses,40200,Miscellaneous Expenses,5034,17 days of work to reset cobbles and provided materials,20/02/2013,86864,726.00,Revenue,Stafford Estates LTD,22541
Chorley Borough Council,http://statistics.data.gov.uk/id/local-authority/30UE,Capital,Capital,Streetscene & Leisure Contracts,Equipment,3014,Capital Expenditure,Capital,Wheeled bin inner caddy 40 litre Black Repro BluInsert. CLEA01024P - existing logo -one long side - white,25/02/2013,87012,"4,777.50",Capital,Straight Plc,17633
Chorley Borough Council,http://statistics.data.gov.uk/id/local-authority/30UE,Capital,Capital,Governance,Main Contractor,3007,Capital Expenditure,Capital,1st floor building works at Union St as per inv. 8281,13/02/2013,86893,"6,808.99",Capital,Stringfellow Bldg Cntrctrs Ltd,17893
Chorley Borough Council,http://statistics.data.gov.uk/id/local-authority/30UE,Capital,Capital,Governance,Main Contractor,3007,Capital Expenditure,Capital,Ground Floor building work at Union street as per invoice 8282,13/02/2013,86907,469.53,Capital,Stringfellow Bldg Cntrctrs Ltd,17893
Chorley Borough Council,http://statistics.data.gov.uk/id/local-authority/30UE,Capital,Capital,Housing,Staying-Put Grant,3003,Capital Expenditure,Capital,Capital Works - Disable Facility Grant,20/02/2013,86946,"4,752.00",Capital,Stringfellow Bldg Cntrctrs Ltd,17893
Chorley Borough Council,http://statistics.data.gov.uk/id/local-authority/30UE,Open Spaces,1038,Streetscene & Leisure Contracts,Other Fees,40212,Miscellaneous Expenses,5034,Coal Mining Risk Assesment Report,13/02/2013,86756,365.00,Revenue,Sub Surface North West Limited,55367
Chorley Borough Council,http://statistics.data.gov.uk/id/local-authority/30UE,Democratic Represent and  Mgnt,1007,Governance,Member Development Programme,17007,Indirect Employee Expenses,5002,"Member Learningm - 4 February 2013 - Deliver fees Presentation  & Persuasion",20/02/2013,86905,900.00,Revenue,Successful Speeches,51627
Chorley Borough Council,http://statistics.data.gov.uk/id/local-authority/30UE,Central Support Services,1009,Governance,General Subscriptions,40146,Grants and Subscriptions,5031,Westlaw UK Services Subscription period 31.01.2013 - 31.12.2013,13/02/2013,86906,"6,449.55",Revenue,Sweet & Maxwell Limited,17932
Chorley Borough Council,http://statistics.data.gov.uk/id/local-authority/30UE,Central Support Services,1009,Governance,Cleaning Materials,40019,"Equipment, Furniture & Materia",5023,Various cleaning products,25/02/2013,87008,"1,184.05",Revenue,System Hygiene Ltd,16572
Chorley Borough Council,http://statistics.data.gov.uk/id/local-authority/30UE,Central Support Services,1009,"Customer, ICT & Transactional",Computer Equipment-Purchase,40098,Communication and Computing,5028,"ARCTIC COOLING Z-2 	Dual Monit Artic Cooling ORAEQ-MA004-GBA01",06/02/2013,86685,480.60,Revenue,Systo UK,57308
Chorley Borough Council,http://statistics.data.gov.uk/id/local-authority/30UE,Central Support Services,1009,Governance,Tools & Equipment - Purchase,40003,"Equipment, Furniture & Materia",5023,500 x Compact retractable badge reels with 20mm full colour domed logo - CUBGR500,08/02/2013,84896,481.25,Revenue,The Card Network,21209
Chorley Borough Council,http://statistics.data.gov.uk/id/local-authority/30UE,Unapportionable Central OHeads,1009,Governance,Mayoral Hospitality,40123,Expenses,5030,Deposit for the Mayor`s Charity Ball taking place on 29th June 2013,06/02/2013,86683,500.00,Revenue,The Pines Hotel (Chorley) Ltd,18076
Chorley Borough Council,http://statistics.data.gov.uk/id/local-authority/30UE,Central Support Services,1009,Chief Executives Office,Postages,40082,Communication and Computing,5028,Mail collection for all departments,08/02/2013,86770,"1,112.58",Revenue,TNT Post North Ltd,21187
Chorley Borough Council,http://statistics.data.gov.uk/id/local-authority/30UE,Unapportionable Central OHeads,1009,Chief Executives Office,Postages,40082,Communication and Computing,5028,Mail collection for all departments,27/02/2013,87100,792.65,Revenue,TNT Post North Ltd,21187
Chorley Borough Council,http://statistics.data.gov.uk/id/local-authority/30UE,Capital,Capital,Shared Service Arrangement,Other Contractor,3012,Capital Expenditure,Capital,Work at The White Hart,08/02/2013,86773,"7,800.00",Capital,Tony Fitzgerald,57325
Chorley Borough Council,http://statistics.data.gov.uk/id/local-authority/30UE,Capital,Capital,Shared Service Arrangement,Other Contractor,3012,Capital Expenditure,Capital,Emergency Lighting,27/02/2013,87109,"1,776.00",Capital,Tony Fitzgerald,57325
Chorley Borough Council,http://statistics.data.gov.uk/id/local-authority/30UE,Service Management & Support,1009,Streetscene & Leisure Contracts,External Contractor,40198,Miscellaneous Expenses,5034,Carry out tree work in Astley Park as identified by tree inspections.,06/02/2013,86732,"2,500.00",Revenue,Treescape North West Ltd,17688
Chorley Borough Council,http://statistics.data.gov.uk/id/local-authority/30UE,Service Management & Support,1009,Streetscene & Leisure Contracts,External Contractor,40198,Miscellaneous Expenses,5034,Prune snow/storm damaged pine tree at ADDRESS REDACTED,27/02/2013,87036,180.00,Revenue,Treescape North West Ltd,17688
Chorley Borough Council,http://statistics.data.gov.uk/id/local-authority/30UE,Service Management & Support,1009,Streetscene & Leisure Contracts,External Contractor,40198,Miscellaneous Expenses,5034,Prune and make safe pine tree tennis courts Astley Park,27/02/2013,87036,180.00,Revenue,Treescape North West Ltd,17688
Chorley Borough Council,http://statistics.data.gov.uk/id/local-authority/30UE,Service Management & Support,1009,Streetscene & Leisure Contracts,External Contractor,40198,Miscellaneous Expenses,5034,Prune and make safe storm damaged pine tree entrance St Marys primary school Euxton.,27/02/2013,87036,180.00,Revenue,Treescape North West Ltd,17688
Chorley Borough Council,http://statistics.data.gov.uk/id/local-authority/30UE,Service Management & Support,1009,Streetscene & Leisure Contracts,External Contractor,40198,Miscellaneous Expenses,5034,Remove willow tree fallen onto fence of ADDRESS REDACTED,27/02/2013,87036,270.00,Revenue,Treescape North West Ltd,17688
Chorley Borough Council,http://statistics.data.gov.uk/id/local-authority/30UE,Service Management & Support,1009,Streetscene & Leisure Contracts,External Contractor,40198,Miscellaneous Expenses,5034,Fell sycamore Yarrow depot.,27/02/2013,87036,270.00,Revenue,Treescape North West Ltd,17688
Chorley Borough Council,http://statistics.data.gov.uk/id/local-authority/30UE,Service Management & Support,1009,Streetscene & Leisure Contracts,External Contractor,40198,Miscellaneous Expenses,5034,Prune sycamore ADDRESS REDACTED,27/02/2013,87036,180.00,Revenue,Treescape North West Ltd,17688
Chorley Borough Council,http://statistics.data.gov.uk/id/local-authority/30UE,Service Management & Support,1009,Streetscene & Leisure Contracts,External Contractor,40198,Miscellaneous Expenses,5034,Prune storm damaged pine tree Astley Park tennis courts/bowls hut.,27/02/2013,87036,180.00,Revenue,Treescape North West Ltd,17688
Chorley Borough Council,http://statistics.data.gov.uk/id/local-authority/30UE,Service Management & Support,1009,Streetscene & Leisure Contracts,External Contractor,40198,Miscellaneous Expenses,5034,Fell dead dangerous ash tree ADDRESS REDACTED,27/02/2013,87036,450.00,Revenue,Treescape North West Ltd,17688
Chorley Borough Council,http://statistics.data.gov.uk/id/local-authority/30UE,Service Management & Support,1009,Streetscene & Leisure Contracts,External Contractor,40198,Miscellaneous Expenses,5034,Fell sycamore entrance Yarrow depot.,27/02/2013,87036,180.00,Revenue,Treescape North West Ltd,17688
Chorley Borough Council,http://statistics.data.gov.uk/id/local-authority/30UE,Unapportionable Central OHeads,1009,HR & Org. Development,Miscellaneous Expenses,40200,Miscellaneous Expenses,5034,Level 1-5,01/02/2013,86472,"1,507.17",Revenue,UK Healthcare (BDHSC),17241
Chorley Borough Council,http://statistics.data.gov.uk/id/local-authority/30UE,Control Accounts,Control,HR & Org. Development,General Balances,100,Balance Sheet,Balance,Top Up and Partner deductions,01/02/2013,86472,292.61,Revenue,UK Healthcare (BDHSC),17241
Chorley Borough Council,http://statistics.data.gov.uk/id/local-authority/30UE,Central Support Services,1009,HR & Org. Development,Miscellaneous Expenses,40200,Miscellaneous Expenses,5034,Level 1-5,20/02/2013,86948,"1,476.53",Revenue,UK Healthcare (BDHSC),17241
Chorley Borough Council,http://statistics.data.gov.uk/id/local-authority/30UE,Control Accounts,Control,HR & Org. Development,General Balances,100,Balance Sheet,Balance,Top up deductions,20/02/2013,86948,300.94,Revenue,UK Healthcare (BDHSC),17241
Chorley Borough Council,http://statistics.data.gov.uk/id/local-authority/30UE,Service Management & Support,1009,Streetscene & Leisure Contracts,Water - Metered Supplies,20022,Water Services,5009,Standpipes,25/02/2013,86858,456.30,Revenue,United Utilites (Standpipe Invoices Only),20701
Chorley Borough Council,http://statistics.data.gov.uk/id/local-authority/30UE,Service Management & Support,1009,Streetscene & Leisure Contracts,Water - Metered Supplies,20022,Water Services,5009,Standpipe,20/02/2013,86895,456.30,Revenue,United Utilites (Standpipe Invoices Only),20701
Chorley Borough Council,http://statistics.data.gov.uk/id/local-authority/30UE,Central Support Services,1009,Governance,Water - Metered Supplies,20022,Water Services,5009,Water and Wastewater @ Council Offices,13/02/2013,86720,679.05,Revenue,United Utilities Water Plc,17926
Chorley Borough Council,http://statistics.data.gov.uk/id/local-authority/30UE,Regulatory Services,1048,Streetscene & Leisure Contracts,Water - Metered Supplies,20022,Water Services,5009,"Water and Wastewater @ Toilets, Market Place",08/02/2013,86768,"1,904.16",Revenue,United Utilities Water Plc,17926
Chorley Borough Council,http://statistics.data.gov.uk/id/local-authority/30UE,Corporate Management,1008,Streetscene & Leisure Contracts,Unitary Payment(S),50009,Private Contractors,5042,Provision of waste collection and ancillary services for June 2012 to March 2013 inc.,13/02/2013,86716,"251,040.17",Revenue,Veolia ES (UK) Ltd,20748
Chorley Borough Council,http://statistics.data.gov.uk/id/local-authority/30UE,Corporate Management,1008,"Customer, ICT & Transactional",Telephones - Rentals,40083,Communication and Computing,5028,Rental,06/02/2013,83554,"2,400.00",Revenue,Virgin Media Payments Ltd,17632
Chorley Borough Council,http://statistics.data.gov.uk/id/local-authority/30UE,Unapportionable Central OHeads,1009,"Customer, ICT & Transactional",Telephones - Rentals,40083,Communication and Computing,5028,Recurring Charges,27/02/2013,87082,244.63,Revenue,Virgin Media Payments Ltd,17632
Chorley Borough Council,http://statistics.data.gov.uk/id/local-authority/30UE,Central Support Services,1009,"Customer, ICT & Transactional",Telephones - Calls,40084,Communication and Computing,5028,Calls Useage,27/02/2013,87082,422.40,Revenue,Virgin Media Payments Ltd,17632
Chorley Borough Council,http://statistics.data.gov.uk/id/local-authority/30UE,Democratic Represent and  Mgnt,1007,Streetscene & Leisure Contracts,Consultants` Fees,40077,Services,5027,Curatorial Consultant fees for January 2013. Inlcuding VAT.,08/02/2013,86813,583.30,Revenue,Whittle and Draper Fine Art,52271
Chorley Borough Council,http://statistics.data.gov.uk/id/local-authority/30UE,Capital,Capital,Housing,Grants,3002,Capital Expenditure,Capital,Capital Works - Disable Facility Grant,27/02/2013,86923,"4,270.00",Capital,NAME REDACTED,17175
Chorley Borough Council,http://statistics.data.gov.uk/id/local-authority/30UE,Corporate Management,1008,Streetscene & Leisure Contracts,Vehicle Maintenance,30045,Direct Transport Costs,5016,Recover vehicle to workshop trace fault to needs new alternator supply and fit new alternator on MJ56OZK,20/02/2013,86684,340.00,Revenue,Wrekamendid Services Ltd,21188
Chorley Borough Council,http://statistics.data.gov.uk/id/local-authority/30UE,Housing Advice,1071,Streetscene & Leisure Contracts,Other Contributions,40145,Grants and Subscriptions,5031,Yellow Cabs transport services for the Warm Homes Healthy People scheme 2012-13,01/02/2013,86651,365.80,Revenue,Yellow Cabs (North West Ltd),52276
Chorley Borough Council,http://statistics.data.gov.uk/id/local-authority/30UE,Corporate Management,1008,Streetscene & Leisure Contracts,Other Contributions,40145,Grants and Subscriptions,5031,Yellow Cabs transport services for the Warm Homes Healthy People scheme 2012-13,08/02/2013,86722,"1,335.60",Revenue,Yellow Cabs (North West Ltd),52276
